Publisher Label,Publisher URI,"Supplier ID","Supplier","Invoice No.","Amount (£)","Purpose","Transaction Number","Payment Date","Organisational Unit","Cost Centre(T)","Internal Category Number"
"Wolverhampton City Council","http://opendatacommunities.org/id/metropolitan-district-council/wolverhampton","704703","Jim�S Transfleet","2822018","1,165.64","Client Transport","130208004","07/03/2018","School Planning & Resources","Special - Transport","R3042"
"Wolverhampton City Council","http://opendatacommunities.org/id/metropolitan-district-council/wolverhampton","704703","Jim�S Transfleet","2822018A","1,250.34","Client Transport","130208005","07/03/2018","School Planning & Resources","Special - Transport","R3042"
"Wolverhampton City Council","http://opendatacommunities.org/id/metropolitan-district-council/wolverhampton","704718","Job Change 2007","SO0620","6,498.00","TPP - Social Care Support Services","130195155","09/03/2018","Skills","Job Change","R5501"
"Wolverhampton City Council","http://opendatacommunities.org/id/metropolitan-district-council/wolverhampton","704718","Job Change 2007","SO0621","25,000.00","TPP - Social Care Support Services","130195156","09/03/2018","Skills","Job Change","R5501"
"Wolverhampton City Council","http://opendatacommunities.org/id/metropolitan-district-council/wolverhampton","704722","Johal Dairies Limited","1076146","34.71","Provisions (Not for resale)","130208016","14/03/2018","Learning Disability Provider","Duke Street Bungalows","R4101"
"Wolverhampton City Council","http://opendatacommunities.org/id/metropolitan-district-council/wolverhampton","704722","Johal Dairies Limited","1079236","42.53","Provisions (Resale)","130208024","21/03/2018","Older People Provider Services","Blakenhall Resource Centre","R4102"
"Wolverhampton City Council","http://opendatacommunities.org/id/metropolitan-district-council/wolverhampton","704722","Johal Dairies Limited","1079235","34.71","Provisions (Not for resale)","130208023","21/03/2018","Learning Disability Provider","Duke Street Bungalows","R4101"
"Wolverhampton City Council","http://opendatacommunities.org/id/metropolitan-district-council/wolverhampton","704722","Johal Dairies Limited","1068395","85.50","Provisions (Not for resale)","130208157","07/03/2018","Visitor Economy","Bantock - Tea Rooms","R4101"
"Wolverhampton City Council","http://opendatacommunities.org/id/metropolitan-district-council/wolverhampton","704722","Johal Dairies Limited","1076203","45.03","Provisions (Not for resale)","130208018","16/03/2018","Adult Education","Caf�","R4101"
"Wolverhampton City Council","http://opendatacommunities.org/id/metropolitan-district-council/wolverhampton","704722","Johal Dairies Limited","W1/3012018","32,798.38","School Milk","130208809","14/03/2018","Catering","Education Catering - General Overheads","R4104"
"Wolverhampton City Council","http://opendatacommunities.org/id/metropolitan-district-council/wolverhampton","704722","Johal Dairies Limited","1068399","34.71","Provisions (Not for resale)","130208160","07/03/2018","Learning Disability Provider","Duke Street Bungalows","R4101"
"Wolverhampton City Council","http://opendatacommunities.org/id/metropolitan-district-council/wolverhampton","704722","Johal Dairies Limited","1068398","25.57","Provisions (Not for resale)","130208159","07/03/2018","Learning Disability Provider","Duke Street Bungalows","R4101"
"Wolverhampton City Council","http://opendatacommunities.org/id/metropolitan-district-council/wolverhampton","704722","Johal Dairies Limited","1071987","146.68","Provisions (Not for resale)","130208164","07/03/2018","Visitor Economy","Bantock - Tea Rooms","R4101"
"Wolverhampton City Council","http://opendatacommunities.org/id/metropolitan-district-council/wolverhampton","704722","Johal Dairies Limited","1079233","20.28","Provisions (Not for resale)","130208021","21/03/2018","Learning Disability Provider","Duke Street Bungalows","R4101"
"Wolverhampton City Council","http://opendatacommunities.org/id/metropolitan-district-council/wolverhampton","704722","Johal Dairies Limited","1079231","65.09","Provisions (Not for resale)","130208020","21/03/2018","Visitor Economy","Bantock - Tea Rooms","R4101"
"Wolverhampton City Council","http://opendatacommunities.org/id/metropolitan-district-council/wolverhampton","704722","Johal Dairies Limited","1024928","128.57","Provisions (Not for resale)","130204718","07/03/2018","Older People Provider Services","Bradley Lodge Resource Centre","R4101"
"Wolverhampton City Council","http://opendatacommunities.org/id/metropolitan-district-council/wolverhampton","704722","Johal Dairies Limited","1068451","19.03","Provisions (Resale)","130208161","23/03/2018","Older People Provider Services","Blakenhall Resource Centre","R4102"
"Wolverhampton City Council","http://opendatacommunities.org/id/metropolitan-district-council/wolverhampton","704722","Johal Dairies Limited","1076145","25.57","Provisions (Not for resale)","130208015","14/03/2018","Learning Disability Provider","Duke Street Bungalows","R4101"
"Wolverhampton City Council","http://opendatacommunities.org/id/metropolitan-district-council/wolverhampton","704722","Johal Dairies Limited","1071975","104.30","Provisions (Not for resale)","130208163","16/03/2018","Older People Provider Services","Bradley Lodge Resource Centre","R4101"
"Wolverhampton City Council","http://opendatacommunities.org/id/metropolitan-district-council/wolverhampton","704722","Johal Dairies Limited","1068397","20.28","Provisions (Not for resale)","130208158","07/03/2018","Learning Disability Provider","Duke Street Bungalows","R4101"
"Wolverhampton City Council","http://opendatacommunities.org/id/metropolitan-district-council/wolverhampton","704722","Johal Dairies Limited","1071991","34.71","Provisions (Not for resale)","130208009","07/03/2018","Learning Disability Provider","Duke Street Bungalows","R4101"
"Wolverhampton City Council","http://opendatacommunities.org/id/metropolitan-district-council/wolverhampton","704722","Johal Dairies Limited","1068383","134.16","Provisions (Not for resale)","130208006","07/03/2018","Older People Provider Services","Bradley Lodge Resource Centre","R4101"
"Wolverhampton City Council","http://opendatacommunities.org/id/metropolitan-district-council/wolverhampton","704722","Johal Dairies Limited","1071990","25.57","Provisions (Not for resale)","130208008","07/03/2018","Learning Disability Provider","Duke Street Bungalows","R4101"
"Wolverhampton City Council","http://opendatacommunities.org/id/metropolitan-district-council/wolverhampton","704722","Johal Dairies Limited","WKIT012018","8,282.48","Provisions (Resale)","130206938","07/03/2018","Catering","Education Catering - General Overheads","R4102"
"Wolverhampton City Council","http://opendatacommunities.org/id/metropolitan-district-council/wolverhampton","704722","Johal Dairies Limited","WKIT012018","30.81","Provisions (Resale)","130206938","07/03/2018","Catering","Education Catering - General Overheads","R4102"
"Wolverhampton City Council","http://opendatacommunities.org/id/metropolitan-district-council/wolverhampton","704722","Johal Dairies Limited","WKIT012018","8,313.29","Provisions (Resale)","130206938","07/03/2018","Catering","Education Catering - General Overheads","R4102"
"Wolverhampton City Council","http://opendatacommunities.org/id/metropolitan-district-council/wolverhampton","704722","Johal Dairies Limited","WKIT012018","-8,313.29","Provisions (Resale)","130206938","07/03/2018","Catering","Education Catering - General Overheads","R4102"
"Wolverhampton City Council","http://opendatacommunities.org/id/metropolitan-district-council/wolverhampton","704722","Johal Dairies Limited","6525022018","146.30","Provisions (Not for resale)","130208647","21/03/2018","Leisure Services","WV Active Catering - Central","R4101"
"Wolverhampton City Council","http://opendatacommunities.org/id/metropolitan-district-council/wolverhampton","704722","Johal Dairies Limited","1079234","25.57","Provisions (Not for resale)","130208022","21/03/2018","Learning Disability Provider","Duke Street Bungalows","R4101"
"Wolverhampton City Council","http://opendatacommunities.org/id/metropolitan-district-council/wolverhampton","704722","Johal Dairies Limited","1076144","20.28","Provisions (Not for resale)","130208014","14/03/2018","Learning Disability Provider","Duke Street Bungalows","R4101"
"Wolverhampton City Council","http://opendatacommunities.org/id/metropolitan-district-council/wolverhampton","704722","Johal Dairies Limited","5620012018","838.23","Provisions (Resale)","130208645","09/03/2018","Catering","Civic Centre Catering","R4102"
"Wolverhampton City Council","http://opendatacommunities.org/id/metropolitan-district-council/wolverhampton","704722","Johal Dairies Limited","1072043","11.02","Provisions (Resale)","130208010","16/03/2018","Older People Provider Services","Blakenhall Resource Centre","R4102"
"Wolverhampton City Council","http://opendatacommunities.org/id/metropolitan-district-council/wolverhampton","704722","Johal Dairies Limited","1076142","85.10","Provisions (Not for resale)","130208013","14/03/2018","Visitor Economy","Bantock - Tea Rooms","R4101"
"Wolverhampton City Council","http://opendatacommunities.org/id/metropolitan-district-council/wolverhampton","704722","Johal Dairies Limited","1072048","35.12","Provisions (Not for resale)","130208011","16/03/2018","Adult Education","Caf�","R4101"
"Wolverhampton City Council","http://opendatacommunities.org/id/metropolitan-district-council/wolverhampton","704722","Johal Dairies Limited","1071989","20.28","Provisions (Not for resale)","130208007","07/03/2018","Learning Disability Provider","Duke Street Bungalows","R4101"
"Wolverhampton City Council","http://opendatacommunities.org/id/metropolitan-district-council/wolverhampton","704722","Johal Dairies Limited","1016633","133.36","Provisions (Not for resale)","130204704","07/03/2018","Older People Provider Services","Bradley Lodge Resource Centre","R4101"
"Wolverhampton City Council","http://opendatacommunities.org/id/metropolitan-district-council/wolverhampton","704722","Johal Dairies Limited","1076198","19.03","Provisions (Resale)","130208017","21/03/2018","Older People Provider Services","Blakenhall Resource Centre","R4102"
"Wolverhampton City Council","http://opendatacommunities.org/id/metropolitan-district-council/wolverhampton","704722","Johal Dairies Limited","5466022018","310.67","Provisions (Not for resale)","130208644","21/03/2018","Leisure Services","WV Active Catering","R4101"
"Wolverhampton City Council","http://opendatacommunities.org/id/metropolitan-district-council/wolverhampton","704722","Johal Dairies Limited","5935022018","262.79","Provisions (Not for resale)","130208646","21/03/2018","Leisure Services","Bert Williams Leisure Centre Caf�","R4101"
"Wolverhampton City Council","http://opendatacommunities.org/id/metropolitan-district-council/wolverhampton","704722","Johal Dairies Limited","1068572","-5.28","Provisions (Resale)","130210149","21/03/2018","Older People Provider Services","Blakenhall Resource Centre","R4102"
"Wolverhampton City Council","http://opendatacommunities.org/id/metropolitan-district-council/wolverhampton","704722","Johal Dairies Limited","5620022018","853.26","Provisions (Resale)","130210255","23/03/2018","Catering","Civic Centre Catering","R4102"
"Wolverhampton City Council","http://opendatacommunities.org/id/metropolitan-district-council/wolverhampton","704722","Johal Dairies Limited","WKIT022018","6,539.17","Provisions (Resale)","130210256","23/03/2018","Catering","Education Catering - General Overheads","R4102"
"Wolverhampton City Council","http://opendatacommunities.org/id/metropolitan-district-council/wolverhampton","704722","Johal Dairies Limited","1068456","33.15","Provisions (Not for resale)","130208162","14/03/2018","Adult Education","Caf�","R4101"
"Wolverhampton City Council","http://opendatacommunities.org/id/metropolitan-district-council/wolverhampton","704731","John Knight Interiors","13406WC008","524.00","Equipment - Purchase","130210003","23/03/2018","Early Intervention","EIP Locality 4 - Bingley","R4000"
"Wolverhampton City Council","http://opendatacommunities.org/id/metropolitan-district-council/wolverhampton","704731","John Knight Interiors","13399WC008","1,576.00","Furniture","130209398","21/03/2018","Early Intervention","EIP Locality 8 � Children�s Village","R4004"
"Wolverhampton City Council","http://opendatacommunities.org/id/metropolitan-district-council/wolverhampton","704731","John Knight Interiors","13368WC008","995.14","Furniture","130207403","02/03/2018","Early Intervention","EIP Locality 8 � Children�s Village","R4004"
"Wolverhampton City Council","http://opendatacommunities.org/id/metropolitan-district-council/wolverhampton","704736","John Packer Limited","130632","47.50","Equipment - Purchase","130209012","16/03/2018","Standards and Vulnerable Pupils","Music Support Team","R4000"
"Wolverhampton City Council","http://opendatacommunities.org/id/metropolitan-district-council/wolverhampton","704736","John Packer Limited","130107","48.00","Equipment - R & M","130207241","02/03/2018","Standards and Vulnerable Pupils","Music Support Team","R4003"
"Wolverhampton City Council","http://opendatacommunities.org/id/metropolitan-district-council/wolverhampton","704745","Johnson Poole & Bloomer Limited","63881","525.00","R&M - Departmental planned (internal)","130209574","21/03/2018","Bereavement Services","Cemeteries","R2000"
"Wolverhampton City Council","http://opendatacommunities.org/id/metropolitan-district-council/wolverhampton","704745","Johnson Poole & Bloomer Limited","63871","513.00","Construction and Conversion","130207496","07/03/2018","-","Structural works","C1100"
"Wolverhampton City Council","http://opendatacommunities.org/id/metropolitan-district-council/wolverhampton","704745","Johnson Poole & Bloomer Limited","63838","4,412.20","Services - Professional Fees","130207494","14/03/2018","School Planning & Resources","Primary Expansion Feasibility Work","R4400"
"Wolverhampton City Council","http://opendatacommunities.org/id/metropolitan-district-council/wolverhampton","704745","Johnson Poole & Bloomer Limited","63873","650.00","Services - Professional Fees","130207497","02/03/2018","Estates and Valuations","Disposal Costs","R4400"
"Wolverhampton City Council","http://opendatacommunities.org/id/metropolitan-district-council/wolverhampton","704745","Johnson Poole & Bloomer Limited","63777","513.00","Construction and Conversion","130207489","07/03/2018","-","Structural works","C1100"
"Wolverhampton City Council","http://opendatacommunities.org/id/metropolitan-district-council/wolverhampton","704745","Johnson Poole & Bloomer Limited","63770","1,494.16","Construction and Conversion","130207488","07/03/2018","-","Structural works","C1100"
"Wolverhampton City Council","http://opendatacommunities.org/id/metropolitan-district-council/wolverhampton","704745","Johnson Poole & Bloomer Limited","63858","513.00","Construction and Conversion","130207495","07/03/2018","-","Structural works","C1100"
"Wolverhampton City Council","http://opendatacommunities.org/id/metropolitan-district-council/wolverhampton","704745","Johnson Poole & Bloomer Limited","63785","720.00","Construction and Conversion","130207490","07/03/2018","-","Structural works","C1100"
"Wolverhampton City Council","http://opendatacommunities.org/id/metropolitan-district-council/wolverhampton","704745","Johnson Poole & Bloomer Limited","63880","1,940.00","Services - Professional Fees","130209182","14/03/2018","City Development","City Centre Public Realm","R4400"
"Wolverhampton City Council","http://opendatacommunities.org/id/metropolitan-district-council/wolverhampton","704745","Johnson Poole & Bloomer Limited","63769","3,471.00","Services - Professional Fees","130207487","14/03/2018","City Development","City Centre Public Realm","R4400"
"Wolverhampton City Council","http://opendatacommunities.org/id/metropolitan-district-council/wolverhampton","704745","Johnson Poole & Bloomer Limited","63826","513.00","Construction and Conversion","130207493","07/03/2018","-","Structural works","C1100"
"Wolverhampton City Council","http://opendatacommunities.org/id/metropolitan-district-council/wolverhampton","704745","Johnson Poole & Bloomer Limited","63802","513.00","Construction and Conversion","130207491","07/03/2018","-","Structural works","C1100"
"Wolverhampton City Council","http://opendatacommunities.org/id/metropolitan-district-council/wolverhampton","704748","Johnston Sweepers Limited","61594884","122.63","Equipment - Purchase","190437011","21/03/2018","Fleet Services","Fleet Management","R4000"
"Wolverhampton City Council","http://opendatacommunities.org/id/metropolitan-district-council/wolverhampton","704748","Johnston Sweepers Limited","61592935","25.88","Equipment - Purchase","190439613","23/03/2018","Fleet Services","Fleet Management","R4000"
"Wolverhampton City Council","http://opendatacommunities.org/id/metropolitan-district-council/wolverhampton","704748","Johnston Sweepers Limited","65281498","3.00","Services - Professional Fees","190439616","23/03/2018","Fleet Services","Fleet Management","R4400"
"Wolverhampton City Council","http://opendatacommunities.org/id/metropolitan-district-council/wolverhampton","704748","Johnston Sweepers Limited","65281498","142.00","Services - Professional Fees","190439616","23/03/2018","Fleet Services","Fleet Management","R4400"
"Wolverhampton City Council","http://opendatacommunities.org/id/metropolitan-district-council/wolverhampton","704748","Johnston Sweepers Limited","61576083","34.85","Equipment - Purchase","190430147","02/03/2018","Fleet Services","Fleet Management","R4000"
"Wolverhampton City Council","http://opendatacommunities.org/id/metropolitan-district-council/wolverhampton","704748","Johnston Sweepers Limited","65281334","142.00","Services - Professional Fees","190435297","14/03/2018","Fleet Services","Fleet Management","R4400"
"Wolverhampton City Council","http://opendatacommunities.org/id/metropolitan-district-council/wolverhampton","704748","Johnston Sweepers Limited","65281334","3.00","Services - Professional Fees","190435297","14/03/2018","Fleet Services","Fleet Management","R4400"
"Wolverhampton City Council","http://opendatacommunities.org/id/metropolitan-district-council/wolverhampton","704748","Johnston Sweepers Limited","65282177","6.00","Services - Professional Fees","190440583","23/03/2018","Fleet Services","Fleet Management","R4400"
"Wolverhampton City Council","http://opendatacommunities.org/id/metropolitan-district-council/wolverhampton","704748","Johnston Sweepers Limited","65282177","180.00","Services - Professional Fees","190440583","23/03/2018","Fleet Services","Fleet Management","R4400"
"Wolverhampton City Council","http://opendatacommunities.org/id/metropolitan-district-council/wolverhampton","704748","Johnston Sweepers Limited","65282177","142.00","Services - Professional Fees","190440583","23/03/2018","Fleet Services","Fleet Management","R4400"
"Wolverhampton City Council","http://opendatacommunities.org/id/metropolitan-district-council/wolverhampton","704748","Johnston Sweepers Limited","65282177","141.95","Services - Professional Fees","190440583","23/03/2018","Fleet Services","Fleet Management","R4400"
"Wolverhampton City Council","http://opendatacommunities.org/id/metropolitan-district-council/wolverhampton","704748","Johnston Sweepers Limited","61592029","42.28","Equipment - Purchase","190432475","07/03/2018","Fleet Services","Fleet Management","R4000"
"Wolverhampton City Council","http://opendatacommunities.org/id/metropolitan-district-council/wolverhampton","704748","Johnston Sweepers Limited","61592029","35.48","Equipment - Purchase","190432475","07/03/2018","Fleet Services","Fleet Management","R4000"
"Wolverhampton City Council","http://opendatacommunities.org/id/metropolitan-district-council/wolverhampton","704748","Johnston Sweepers Limited","61595307","8.52","Equipment - Purchase","190437012","21/03/2018","Fleet Services","Fleet Management","R4000"
"Wolverhampton City Council","http://opendatacommunities.org/id/metropolitan-district-council/wolverhampton","704748","Johnston Sweepers Limited","61595307","13.72","Equipment - Purchase","190437012","21/03/2018","Fleet Services","Fleet Management","R4000"
"Wolverhampton City Council","http://opendatacommunities.org/id/metropolitan-district-council/wolverhampton","704748","Johnston Sweepers Limited","61595307","132.62","Equipment - Purchase","190437012","21/03/2018","Fleet Services","Fleet Management","R4000"
"Wolverhampton City Council","http://opendatacommunities.org/id/metropolitan-district-council/wolverhampton","704748","Johnston Sweepers Limited","61598677","27.96","Equipment - Purchase","190440577","23/03/2018","Fleet Services","Fleet Management","R4000"
"Wolverhampton City Council","http://opendatacommunities.org/id/metropolitan-district-council/wolverhampton","704748","Johnston Sweepers Limited","61589932","26.09","Equipment - Purchase","190430148","02/03/2018","Fleet Services","Fleet Management","R4000"
"Wolverhampton City Council","http://opendatacommunities.org/id/metropolitan-district-council/wolverhampton","704748","Johnston Sweepers Limited","61589932","30.04","Equipment - Purchase","190430148","02/03/2018","Fleet Services","Fleet Management","R4000"
"Wolverhampton City Council","http://opendatacommunities.org/id/metropolitan-district-council/wolverhampton","704748","Johnston Sweepers Limited","61589932","12.55","Equipment - Purchase","190430148","02/03/2018","Fleet Services","Fleet Management","R4000"
"Wolverhampton City Council","http://opendatacommunities.org/id/metropolitan-district-council/wolverhampton","704748","Johnston Sweepers Limited","61589932","11.89","Equipment - Purchase","190430148","02/03/2018","Fleet Services","Fleet Management","R4000"
"Wolverhampton City Council","http://opendatacommunities.org/id/metropolitan-district-council/wolverhampton","704748","Johnston Sweepers Limited","61589932","21.50","Equipment - Purchase","190430148","02/03/2018","Fleet Services","Fleet Management","R4000"
"Wolverhampton City Council","http://opendatacommunities.org/id/metropolitan-district-council/wolverhampton","704748","Johnston Sweepers Limited","61589932","26.12","Equipment - Purchase","190430148","02/03/2018","Fleet Services","Fleet Management","R4000"
"Wolverhampton City Council","http://opendatacommunities.org/id/metropolitan-district-council/wolverhampton","704748","Johnston Sweepers Limited","61589932","87.60","Equipment - Purchase","190430148","02/03/2018","Fleet Services","Fleet Management","R4000"
"Wolverhampton City Council","http://opendatacommunities.org/id/metropolitan-district-council/wolverhampton","704748","Johnston Sweepers Limited","61589932","11.96","Equipment - Purchase","190430148","02/03/2018","Fleet Services","Fleet Management","R4000"
"Wolverhampton City Council","http://opendatacommunities.org/id/metropolitan-district-council/wolverhampton","704748","Johnston Sweepers Limited","61589932","12.60","Equipment - Purchase","190430148","02/03/2018","Fleet Services","Fleet Management","R4000"
"Wolverhampton City Council","http://opendatacommunities.org/id/metropolitan-district-council/wolverhampton","704748","Johnston Sweepers Limited","61589932","0.90","Equipment - Purchase","190430148","02/03/2018","Fleet Services","Fleet Management","R4000"
"Wolverhampton City Council","http://opendatacommunities.org/id/metropolitan-district-council/wolverhampton","704748","Johnston Sweepers Limited","61592027","389.88","Equipment - Purchase","190435295","14/03/2018","Fleet Services","Fleet Management","R4000"
"Wolverhampton City Council","http://opendatacommunities.org/id/metropolitan-district-council/wolverhampton","704748","Johnston Sweepers Limited","61592027","389.88","Equipment - Purchase","190435295","14/03/2018","Fleet Services","Fleet Management","R4000"
"Wolverhampton City Council","http://opendatacommunities.org/id/metropolitan-district-council/wolverhampton","704748","Johnston Sweepers Limited","61592027","15.73","Equipment - Purchase","190435295","14/03/2018","Fleet Services","Fleet Management","R4000"
"Wolverhampton City Council","http://opendatacommunities.org/id/metropolitan-district-council/wolverhampton","704748","Johnston Sweepers Limited","61592028","2.54","Equipment - Purchase","190432474","07/03/2018","Fleet Services","Fleet Management","R4000"
"Wolverhampton City Council","http://opendatacommunities.org/id/metropolitan-district-council/wolverhampton","704748","Johnston Sweepers Limited","61592028","2.26","Equipment - Purchase","190432474","07/03/2018","Fleet Services","Fleet Management","R4000"
"Wolverhampton City Council","http://opendatacommunities.org/id/metropolitan-district-council/wolverhampton","704748","Johnston Sweepers Limited","61592028","3.87","Equipment - Purchase","190432474","07/03/2018","Fleet Services","Fleet Management","R4000"
"Wolverhampton City Council","http://opendatacommunities.org/id/metropolitan-district-council/wolverhampton","704748","Johnston Sweepers Limited","61592028","1.05","Equipment - Purchase","190432474","07/03/2018","Fleet Services","Fleet Management","R4000"
"Wolverhampton City Council","http://opendatacommunities.org/id/metropolitan-district-council/wolverhampton","704748","Johnston Sweepers Limited","61592028","72.40","Equipment - Purchase","190432474","07/03/2018","Fleet Services","Fleet Management","R4000"
"Wolverhampton City Council","http://opendatacommunities.org/id/metropolitan-district-council/wolverhampton","704748","Johnston Sweepers Limited","61599221","105.62","Equipment - Purchase","190440578","23/03/2018","Fleet Services","Fleet Management","R4000"
"Wolverhampton City Council","http://opendatacommunities.org/id/metropolitan-district-council/wolverhampton","704748","Johnston Sweepers Limited","61591627","20.11","Equipment - Purchase","190435294","14/03/2018","Fleet Services","Fleet Management","R4000"
"Wolverhampton City Council","http://opendatacommunities.org/id/metropolitan-district-council/wolverhampton","704748","Johnston Sweepers Limited","61591627","3.46","Equipment - Purchase","190435294","14/03/2018","Fleet Services","Fleet Management","R4000"
"Wolverhampton City Council","http://opendatacommunities.org/id/metropolitan-district-council/wolverhampton","704748","Johnston Sweepers Limited","61591627","15.73","Equipment - Purchase","190435294","14/03/2018","Fleet Services","Fleet Management","R4000"
"Wolverhampton City Council","http://opendatacommunities.org/id/metropolitan-district-council/wolverhampton","704748","Johnston Sweepers Limited","61591627","1.09","Equipment - Purchase","190435294","14/03/2018","Fleet Services","Fleet Management","R4000"
"Wolverhampton City Council","http://opendatacommunities.org/id/metropolitan-district-council/wolverhampton","704754","Jones Skips (Wolverhampton) Limited","45832","2,768.64","TPP - Waste Disposal","130210005","21/03/2018","Environmental Maintenance","Ground Maintenance East","R5003"
"Wolverhampton City Council","http://opendatacommunities.org/id/metropolitan-district-council/wolverhampton","704754","Jones Skips (Wolverhampton) Limited","44220","2,022.92","TPP - Waste Disposal","130210004","21/03/2018","Environmental Maintenance","Ground Maintenance East","R5003"
"Wolverhampton City Council","http://opendatacommunities.org/id/metropolitan-district-council/wolverhampton","704754","Jones Skips (Wolverhampton) Limited","45836","170.00","TPP - Waste Disposal","130209183","21/03/2018","Looked After Children","Head of Service - LAC","R5003"
"Wolverhampton City Council","http://opendatacommunities.org/id/metropolitan-district-council/wolverhampton","704756","Jones Transmissions","6359","194.90","Services - Professional Fees","190440579","23/03/2018","Fleet Services","Fleet Management","R4400"
"Wolverhampton City Council","http://opendatacommunities.org/id/metropolitan-district-council/wolverhampton","704756","Jones Transmissions","6359","20.00","Services - Professional Fees","190440579","23/03/2018","Fleet Services","Fleet Management","R4400"
"Wolverhampton City Council","http://opendatacommunities.org/id/metropolitan-district-council/wolverhampton","704756","Jones Transmissions","6359","595.00","Services - Professional Fees","190440579","23/03/2018","Fleet Services","Fleet Management","R4400"
"Wolverhampton City Council","http://opendatacommunities.org/id/metropolitan-district-council/wolverhampton","704756","Jones Transmissions","6359","200.00","Services - Professional Fees","190440579","23/03/2018","Fleet Services","Fleet Management","R4400"
"Wolverhampton City Council","http://opendatacommunities.org/id/metropolitan-district-council/wolverhampton","704756","Jones Transmissions","6331","395.00","Services - Professional Fees","190432476","07/03/2018","Fleet Services","Fleet Management","R4400"
"Wolverhampton City Council","http://opendatacommunities.org/id/metropolitan-district-council/wolverhampton","704756","Jones Transmissions","6315","162.00","Services - Professional Fees","190439614","23/03/2018","Fleet Services","Fleet Management","R4400"
"Wolverhampton City Council","http://opendatacommunities.org/id/metropolitan-district-council/wolverhampton","704756","Jones Transmissions","6315","240.00","Services - Professional Fees","190439614","23/03/2018","Fleet Services","Fleet Management","R4400"
"Wolverhampton City Council","http://opendatacommunities.org/id/metropolitan-district-council/wolverhampton","704756","Jones Transmissions","6315","45.00","Services - Professional Fees","190439614","23/03/2018","Fleet Services","Fleet Management","R4400"
"Wolverhampton City Council","http://opendatacommunities.org/id/metropolitan-district-council/wolverhampton","704756","Jones Transmissions","6315","49.50","Services - Professional Fees","190439614","23/03/2018","Fleet Services","Fleet Management","R4400"
"Wolverhampton City Council","http://opendatacommunities.org/id/metropolitan-district-council/wolverhampton","704756","Jones Transmissions","6315","895.00","Services - Professional Fees","190439614","23/03/2018","Fleet Services","Fleet Management","R4400"
"Wolverhampton City Council","http://opendatacommunities.org/id/metropolitan-district-council/wolverhampton","704756","Jones Transmissions","6315","220.00","Services - Professional Fees","190439614","23/03/2018","Fleet Services","Fleet Management","R4400"
"Wolverhampton City Council","http://opendatacommunities.org/id/metropolitan-district-council/wolverhampton","704756","Jones Transmissions","6315","16.00","Services - Professional Fees","190439614","23/03/2018","Fleet Services","Fleet Management","R4400"
"Wolverhampton City Council","http://opendatacommunities.org/id/metropolitan-district-council/wolverhampton","704756","Jones Transmissions","6351","395.00","Services - Professional Fees","190439615","23/03/2018","Fleet Services","Fleet Management","R4400"
"Wolverhampton City Council","http://opendatacommunities.org/id/metropolitan-district-council/wolverhampton","704802","K Thornton","54","50.00","Services - Professional Fees","130209741","21/03/2018","Early Intervention","EIP Locality 7 � Low Hill","R4400"
"Wolverhampton City Council","http://opendatacommunities.org/id/metropolitan-district-council/wolverhampton","704802","K Thornton","65","50.00","Services - Professional Fees","130210257","21/03/2018","Early Intervention","EIP Locality 7 � Low Hill","R4400"
"Wolverhampton City Council","http://opendatacommunities.org/id/metropolitan-district-council/wolverhampton","704838","Kee Services Limited","458630","197.14","R&M - Departmental planned (external)","130209575","23/03/2018","Maintenance Programme","Centralised R&M","R2001"
"Wolverhampton City Council","http://opendatacommunities.org/id/metropolitan-district-council/wolverhampton","704855","Kenton Research Limited","OP/I024559","775.00","Computing - Internet","130209742","23/03/2018","Licensing","Licensing - Private Hire Vehicles","R4537"
"Wolverhampton City Council","http://opendatacommunities.org/id/metropolitan-district-council/wolverhampton","704871","Keysoft Solutions Limited","ORD-13162-T8X1N7","1,650.00","Computing - Purchase of Software","130206653","14/03/2018","Transportation","Transportation General","R4531"
"Wolverhampton City Council","http://opendatacommunities.org/id/metropolitan-district-council/wolverhampton","704871","Keysoft Solutions Limited","ORD-13182-Y9Y0K5","2,652.00","Computing - Purchase of Software","130206939","21/03/2018","Transportation","Transportation General","R4531"
"Wolverhampton City Council","http://opendatacommunities.org/id/metropolitan-district-council/wolverhampton","704889","Killgerm Chemicals Limited","SI02-0174566","1,616.08","Materials","130205086","02/03/2018","Environmental Maintenance","Pest Control","R4007"
"Wolverhampton City Council","http://opendatacommunities.org/id/metropolitan-district-council/wolverhampton","704896","King Charles I Secondary School","P16852020180316","650.00","Grant Payments to Individuals","190437072","21/03/2018","Looked After Children","LAC Education Team (LACE)","R6402"
"Wolverhampton City Council","http://opendatacommunities.org/id/metropolitan-district-council/wolverhampton","704901","Kingfisher Environmental Servs Limited","1802553","53.98","R&M - Departmental planned (external)","130208496","14/03/2018","Leisure Services","Central Baths","R2001"
"Wolverhampton City Council","http://opendatacommunities.org/id/metropolitan-district-council/wolverhampton","704901","Kingfisher Environmental Servs Limited","1802552","74.03","Services - Professional Fees","130208495","09/03/2018","Leisure Services","Bert Williams Leisure Centre","R4400"
"Wolverhampton City Council","http://opendatacommunities.org/id/metropolitan-district-council/wolverhampton","704909","Kingsmead  School & Technology College","P16852020180316","650.00","Grant Payments to Individuals","190437072","21/03/2018","Looked After Children","LAC Education Team (LACE)","R6402"
"Wolverhampton City Council","http://opendatacommunities.org/id/metropolitan-district-council/wolverhampton","704909","Kingsmead  School & Technology College","P16852020180316","650.00","Grant Payments to Individuals","190437072","21/03/2018","Looked After Children","LAC Education Team (LACE)","R6402"
"Wolverhampton City Council","http://opendatacommunities.org/id/metropolitan-district-council/wolverhampton","704909","Kingsmead  School & Technology College","P16852020180316","650.00","Grant Payments to Individuals","190437072","21/03/2018","Looked After Children","LAC Education Team (LACE)","R6402"
"Wolverhampton City Council","http://opendatacommunities.org/id/metropolitan-district-council/wolverhampton","704909","Kingsmead  School & Technology College","P16852020180316","750.00","Grant Payments to Individuals","190437072","21/03/2018","Looked After Children","LAC Education Team (LACE)","R6402"
"Wolverhampton City Council","http://opendatacommunities.org/id/metropolitan-district-council/wolverhampton","704931","Konica Minolta Bus.Solutions(UK)Limited.","1135858110","51.90","Photocopier Operating Lease","130205304","07/03/2018","Strategic Organisation Development","Global Budgets","R4304"
"Wolverhampton City Council","http://opendatacommunities.org/id/metropolitan-district-council/wolverhampton","704931","Konica Minolta Bus.Solutions(UK)Limited.","1135520505a corr","-357.07","Photocopier Operating Lease","130208294","07/03/2018","Schools","Castlecroft Primary School","R4304"
"Wolverhampton City Council","http://opendatacommunities.org/id/metropolitan-district-council/wolverhampton","704935","Krcs Group PLC","38227","2,799.16","Computing - Purchase of Hardware","130205637","02/03/2018","ICTS","Strategic ICTS (ICT Service Budget)","R4530"
"Wolverhampton City Council","http://opendatacommunities.org/id/metropolitan-district-council/wolverhampton","704935","Krcs Group PLC","38463","144.00","Computing - Purchase of Hardware","130208358","26/03/2018","Headstart","Headstart - Learning Technologies Team","R4530"
"Wolverhampton City Council","http://opendatacommunities.org/id/metropolitan-district-council/wolverhampton","704945","L And A Lettings Limited","1","2,570.00","Rent","130208467","07/03/2018","Child Protection","CIN/CP Social Work Unit - Area 2","R2200"
"Wolverhampton City Council","http://opendatacommunities.org/id/metropolitan-district-council/wolverhampton","704945","L And A Lettings Limited","LA-KAVANAGH-00003","85.72","Rent Rebates","190436678","21/03/2018","Housing Revenue Account","Spend to Save Fund","R6210"
"Wolverhampton City Council","http://opendatacommunities.org/id/metropolitan-district-council/wolverhampton","704964","L.M.S. Music Supplies","692052","1,505.25","Services - Professional Fees","130206796","09/03/2018","Standards and Vulnerable Pupils","Music Support Team","R4400"
"Wolverhampton City Council","http://opendatacommunities.org/id/metropolitan-district-council/wolverhampton","704995","Langham:A Div�N Of Gordon Ellis & Co","SI-1154441","424.20","Equipment - Purchase","130207243","16/03/2018","Independent Living Service","Independent Living Service","R4000"
"Wolverhampton City Council","http://opendatacommunities.org/id/metropolitan-district-council/wolverhampton","704995","Langham:A Div�N Of Gordon Ellis & Co","SI - 1153927","1,362.57","Equipment - Purchase","130204189","21/03/2018","Independent Living Service","Independent Living Service","R4000"
"Wolverhampton City Council","http://opendatacommunities.org/id/metropolitan-district-council/wolverhampton","704995","Langham:A Div�N Of Gordon Ellis & Co","SI - 1153927","-1,362.57","Equipment - Purchase","130204189","21/03/2018","Independent Living Service","Independent Living Service","R4000"
"Wolverhampton City Council","http://opendatacommunities.org/id/metropolitan-district-council/wolverhampton","704995","Langham:A Div�N Of Gordon Ellis & Co","SI - 1153927","1,428.27","Equipment - Purchase","130204189","21/03/2018","Independent Living Service","Independent Living Service","R4000"
"Wolverhampton City Council","http://opendatacommunities.org/id/metropolitan-district-council/wolverhampton","705003","Lapwing","222895","450.00","Materials","130210674","26/03/2018","Highways Maintenance","Patching","R4007"
"Wolverhampton City Council","http://opendatacommunities.org/id/metropolitan-district-council/wolverhampton","705004","Larac","219262","425.00","Subscriptions","130206654","14/03/2018","Waste and Recycling Service","Waste Collection and Recycling Service - General","R4701"
"Wolverhampton City Council","http://opendatacommunities.org/id/metropolitan-district-council/wolverhampton","705023","Le Breton Services Group Limited","PI030601","127.50","Training Expenses","130207801","09/03/2018","Early Years","Early Years & Universal Service","R1650"
"Wolverhampton City Council","http://opendatacommunities.org/id/metropolitan-district-council/wolverhampton","705023","Le Breton Services Group Limited","PI030601","42.50","Training Expenses","130207801","09/03/2018","Early Years","Play General","R1650"
"Wolverhampton City Council","http://opendatacommunities.org/id/metropolitan-district-council/wolverhampton","705023","Le Breton Services Group Limited","PI030637","191.25","Training Expenses","130207802","09/03/2018","Early Years","Early Years & Universal Service","R1650"
"Wolverhampton City Council","http://opendatacommunities.org/id/metropolitan-district-council/wolverhampton","705023","Le Breton Services Group Limited","PI030637","63.75","Training Expenses","130207802","09/03/2018","Early Years","Play General","R1650"
"Wolverhampton City Council","http://opendatacommunities.org/id/metropolitan-district-council/wolverhampton","705023","Le Breton Services Group Limited","PI030511","191.25","Training Expenses","130207800","09/03/2018","Early Years","Early Years & Universal Service","R1650"
"Wolverhampton City Council","http://opendatacommunities.org/id/metropolitan-district-council/wolverhampton","705023","Le Breton Services Group Limited","PI030511","63.75","Training Expenses","130207800","09/03/2018","Early Years","Play General","R1650"
"Wolverhampton City Council","http://opendatacommunities.org/id/metropolitan-district-council/wolverhampton","705023","Le Breton Services Group Limited","1488 bacs rej","191.67","Agency Staff","130209097","14/03/2018","Schools","Bilston Nursery","R1100"
"Wolverhampton City Council","http://opendatacommunities.org/id/metropolitan-district-council/wolverhampton","705048","Learning Pool Limited","INV - 012214","54,600.00","Computing - Licences","130207244","02/03/2018","Human Resources","Centralised Training","R4535"
"Wolverhampton City Council","http://opendatacommunities.org/id/metropolitan-district-council/wolverhampton","705069","Leicestershire County Council","85981130","125.00","Training Expenses","130208165","07/03/2018","Human Resources","Newly Qualified Social Workers","R1650"
"Wolverhampton City Council","http://opendatacommunities.org/id/metropolitan-district-council/wolverhampton","705083","Let Us Play (Wolverhampton)","LUP00190","2,000.00","TPP - Payments to voluntary groups","130206940","21/03/2018","Headstart","Headstart - Commissioned Activity","R5200"
"Wolverhampton City Council","http://opendatacommunities.org/id/metropolitan-district-council/wolverhampton","705089","Reliance Medical Limited","695472","65.85","Materials","130208166","14/03/2018","Learning Disability Provider","Duke Street Bungalows","R4007"
"Wolverhampton City Council","http://opendatacommunities.org/id/metropolitan-district-council/wolverhampton","705089","Reliance Medical Limited","695333","107.70","Materials","130207803","23/03/2018","Facilities Management","Civic Centre","R4007"
"Wolverhampton City Council","http://opendatacommunities.org/id/metropolitan-district-council/wolverhampton","705089","Reliance Medical Limited","696475","-7.95","Materials","130210258","23/03/2018","Facilities Management","Civic Centre","R4007"
"Wolverhampton City Council","http://opendatacommunities.org/id/metropolitan-district-council/wolverhampton","705091","Lexis Nexis","DI560578E","40,401.00","Subscriptions","130208167","26/03/2018","Legal Services","Legal Services","R4701"
"Wolverhampton City Council","http://opendatacommunities.org/id/metropolitan-district-council/wolverhampton","705162","Local Government Association","EX11847","1,154.98","Marketing \ Non-staff advertising","130210008","23/03/2018","Central Corporate Budgets","Corporate Events","R4317"
"Wolverhampton City Council","http://opendatacommunities.org/id/metropolitan-district-council/wolverhampton","705183","Lodge Tyre Co.Limited","15R00983","-12.00","Vehicle Maintenance - Spare Parts","190435274","14/03/2018","Fleet Services","Fleet Management","R3009"
"Wolverhampton City Council","http://opendatacommunities.org/id/metropolitan-district-council/wolverhampton","705183","Lodge Tyre Co.Limited","15R00996","-48.00","Vehicle Maintenance - Spare Parts","190435275","14/03/2018","Fleet Services","Fleet Management","R3009"
"Wolverhampton City Council","http://opendatacommunities.org/id/metropolitan-district-council/wolverhampton","705183","Lodge Tyre Co.Limited","15R00999","-10.00","Vehicle Maintenance - Spare Parts","190440567","23/03/2018","Fleet Services","Fleet Management","R3009"
"Wolverhampton City Council","http://opendatacommunities.org/id/metropolitan-district-council/wolverhampton","705183","Lodge Tyre Co.Limited","15R01001","-22.00","Vehicle Maintenance - Spare Parts","190440568","23/03/2018","Fleet Services","Fleet Management","R3009"
"Wolverhampton City Council","http://opendatacommunities.org/id/metropolitan-district-council/wolverhampton","705183","Lodge Tyre Co.Limited","PE005190.1","54.00","Vehicle Maintenance - Spare Parts","190441083","23/03/2018","Fleet Services","Fleet Management","R3009"
"Wolverhampton City Council","http://opendatacommunities.org/id/metropolitan-district-council/wolverhampton","705183","Lodge Tyre Co.Limited","PE005190.1","56.00","Vehicle Maintenance - Spare Parts","190441083","23/03/2018","Fleet Services","Fleet Management","R3009"
"Wolverhampton City Council","http://opendatacommunities.org/id/metropolitan-district-council/wolverhampton","705183","Lodge Tyre Co.Limited","PE005190.1","66.00","Vehicle Maintenance - Spare Parts","190441083","23/03/2018","Fleet Services","Fleet Management","R3009"
"Wolverhampton City Council","http://opendatacommunities.org/id/metropolitan-district-council/wolverhampton","705183","Lodge Tyre Co.Limited","PE005190.1","60.00","Vehicle Maintenance - Spare Parts","190441083","23/03/2018","Fleet Services","Fleet Management","R3009"
"Wolverhampton City Council","http://opendatacommunities.org/id/metropolitan-district-council/wolverhampton","705183","Lodge Tyre Co.Limited","PE005190.1","60.00","Vehicle Maintenance - Spare Parts","190441083","23/03/2018","Fleet Services","Fleet Management","R3009"
"Wolverhampton City Council","http://opendatacommunities.org/id/metropolitan-district-council/wolverhampton","705183","Lodge Tyre Co.Limited","PE005190.1","120.00","Vehicle Maintenance - Spare Parts","190441083","23/03/2018","Fleet Services","Fleet Management","R3009"
"Wolverhampton City Council","http://opendatacommunities.org/id/metropolitan-district-council/wolverhampton","705183","Lodge Tyre Co.Limited","PE005190.1","15.00","Vehicle Maintenance - Spare Parts","190441083","23/03/2018","Fleet Services","Fleet Management","R3009"
"Wolverhampton City Council","http://opendatacommunities.org/id/metropolitan-district-council/wolverhampton","705183","Lodge Tyre Co.Limited","PE005190.1","390.00","Vehicle Maintenance - Spare Parts","190441083","23/03/2018","Fleet Services","Fleet Management","R3009"
"Wolverhampton City Council","http://opendatacommunities.org/id/metropolitan-district-council/wolverhampton","705183","Lodge Tyre Co.Limited","PE005190.1","59.00","Vehicle Maintenance - Spare Parts","190441083","23/03/2018","Fleet Services","Fleet Management","R3009"
"Wolverhampton City Council","http://opendatacommunities.org/id/metropolitan-district-council/wolverhampton","705183","Lodge Tyre Co.Limited","PE005190.1","15.00","Vehicle Maintenance - Spare Parts","190441083","23/03/2018","Fleet Services","Fleet Management","R3009"
"Wolverhampton City Council","http://opendatacommunities.org/id/metropolitan-district-council/wolverhampton","705183","Lodge Tyre Co.Limited","PE005190.1","55.00","Vehicle Maintenance - Spare Parts","190441083","23/03/2018","Fleet Services","Fleet Management","R3009"
"Wolverhampton City Council","http://opendatacommunities.org/id/metropolitan-district-council/wolverhampton","705183","Lodge Tyre Co.Limited","PE005190.1","3.00","Vehicle Maintenance - Spare Parts","190441083","23/03/2018","Fleet Services","Fleet Management","R3009"
"Wolverhampton City Council","http://opendatacommunities.org/id/metropolitan-district-council/wolverhampton","705183","Lodge Tyre Co.Limited","PE005190.1","3.00","Vehicle Maintenance - Spare Parts","190441083","23/03/2018","Fleet Services","Fleet Management","R3009"
"Wolverhampton City Council","http://opendatacommunities.org/id/metropolitan-district-council/wolverhampton","705183","Lodge Tyre Co.Limited","PE005190.1","140.00","Vehicle Maintenance - Spare Parts","190441083","23/03/2018","Fleet Services","Fleet Management","R3009"
"Wolverhampton City Council","http://opendatacommunities.org/id/metropolitan-district-council/wolverhampton","705183","Lodge Tyre Co.Limited","PE005190.1","120.00","Vehicle Maintenance - Spare Parts","190441083","23/03/2018","Fleet Services","Fleet Management","R3009"
"Wolverhampton City Council","http://opendatacommunities.org/id/metropolitan-district-council/wolverhampton","705183","Lodge Tyre Co.Limited","PE005190.1","25.00","Vehicle Maintenance - Spare Parts","190441083","23/03/2018","Fleet Services","Fleet Management","R3009"
"Wolverhampton City Council","http://opendatacommunities.org/id/metropolitan-district-council/wolverhampton","705183","Lodge Tyre Co.Limited","PE005190.1","60.00","Vehicle Maintenance - Spare Parts","190441083","23/03/2018","Fleet Services","Fleet Management","R3009"
"Wolverhampton City Council","http://opendatacommunities.org/id/metropolitan-district-council/wolverhampton","705183","Lodge Tyre Co.Limited","PE005190.1","15.00","Vehicle Maintenance - Spare Parts","190441083","23/03/2018","Fleet Services","Fleet Management","R3009"
"Wolverhampton City Council","http://opendatacommunities.org/id/metropolitan-district-council/wolverhampton","705183","Lodge Tyre Co.Limited","PE005190.1","66.00","Vehicle Maintenance - Spare Parts","190441083","23/03/2018","Fleet Services","Fleet Management","R3009"
"Wolverhampton City Council","http://opendatacommunities.org/id/metropolitan-district-council/wolverhampton","705183","Lodge Tyre Co.Limited","PE005190.1","60.00","Vehicle Maintenance - Spare Parts","190441083","23/03/2018","Fleet Services","Fleet Management","R3009"
"Wolverhampton City Council","http://opendatacommunities.org/id/metropolitan-district-council/wolverhampton","705183","Lodge Tyre Co.Limited","PE005190.1","780.00","Vehicle Maintenance - Spare Parts","190441083","23/03/2018","Fleet Services","Fleet Management","R3009"
"Wolverhampton City Council","http://opendatacommunities.org/id/metropolitan-district-council/wolverhampton","705183","Lodge Tyre Co.Limited","PE005190.1","65.00","Vehicle Maintenance - Spare Parts","190441083","23/03/2018","Fleet Services","Fleet Management","R3009"
"Wolverhampton City Council","http://opendatacommunities.org/id/metropolitan-district-council/wolverhampton","705183","Lodge Tyre Co.Limited","PE005190.1","20.00","Vehicle Maintenance - Spare Parts","190441083","23/03/2018","Fleet Services","Fleet Management","R3009"
"Wolverhampton City Council","http://opendatacommunities.org/id/metropolitan-district-council/wolverhampton","705183","Lodge Tyre Co.Limited","PE005190.1","225.00","Vehicle Maintenance - Spare Parts","190441083","23/03/2018","Fleet Services","Fleet Management","R3009"
"Wolverhampton City Council","http://opendatacommunities.org/id/metropolitan-district-council/wolverhampton","705183","Lodge Tyre Co.Limited","PE005190.1","25.00","Vehicle Maintenance - Spare Parts","190441083","23/03/2018","Fleet Services","Fleet Management","R3009"
"Wolverhampton City Council","http://opendatacommunities.org/id/metropolitan-district-council/wolverhampton","705183","Lodge Tyre Co.Limited","PE005190.1","15.00","Vehicle Maintenance - Spare Parts","190441083","23/03/2018","Fleet Services","Fleet Management","R3009"
"Wolverhampton City Council","http://opendatacommunities.org/id/metropolitan-district-council/wolverhampton","705183","Lodge Tyre Co.Limited","PE005190.1","3.00","Vehicle Maintenance - Spare Parts","190441083","23/03/2018","Fleet Services","Fleet Management","R3009"
"Wolverhampton City Council","http://opendatacommunities.org/id/metropolitan-district-council/wolverhampton","705183","Lodge Tyre Co.Limited","PE005190.1","71.00","Vehicle Maintenance - Spare Parts","190441083","23/03/2018","Fleet Services","Fleet Management","R3009"
"Wolverhampton City Council","http://opendatacommunities.org/id/metropolitan-district-council/wolverhampton","705183","Lodge Tyre Co.Limited","PE005190.1","12.00","Vehicle Maintenance - Spare Parts","190441083","23/03/2018","Fleet Services","Fleet Management","R3009"
"Wolverhampton City Council","http://opendatacommunities.org/id/metropolitan-district-council/wolverhampton","705183","Lodge Tyre Co.Limited","PE005190.1","15.00","Vehicle Maintenance - Spare Parts","190441083","23/03/2018","Fleet Services","Fleet Management","R3009"
"Wolverhampton City Council","http://opendatacommunities.org/id/metropolitan-district-council/wolverhampton","705183","Lodge Tyre Co.Limited","PE005190.1","216.00","Vehicle Maintenance - Spare Parts","190441083","23/03/2018","Fleet Services","Fleet Management","R3009"
"Wolverhampton City Council","http://opendatacommunities.org/id/metropolitan-district-council/wolverhampton","705183","Lodge Tyre Co.Limited","PE005190.1","54.00","Vehicle Maintenance - Spare Parts","190441083","23/03/2018","Fleet Services","Fleet Management","R3009"
"Wolverhampton City Council","http://opendatacommunities.org/id/metropolitan-district-council/wolverhampton","705183","Lodge Tyre Co.Limited","PE005190.1","180.00","Vehicle Maintenance - Spare Parts","190441083","23/03/2018","Fleet Services","Fleet Management","R3009"
"Wolverhampton City Council","http://opendatacommunities.org/id/metropolitan-district-council/wolverhampton","705183","Lodge Tyre Co.Limited","PE005190.1","60.00","Vehicle Maintenance - Spare Parts","190441083","23/03/2018","Fleet Services","Fleet Management","R3009"
"Wolverhampton City Council","http://opendatacommunities.org/id/metropolitan-district-council/wolverhampton","705183","Lodge Tyre Co.Limited","PE005190.1","117.00","Vehicle Maintenance - Spare Parts","190441083","23/03/2018","Fleet Services","Fleet Management","R3009"
"Wolverhampton City Council","http://opendatacommunities.org/id/metropolitan-district-council/wolverhampton","705183","Lodge Tyre Co.Limited","PE005190.1","2.50","Vehicle Maintenance - Spare Parts","190441083","23/03/2018","Fleet Services","Fleet Management","R3009"
"Wolverhampton City Council","http://opendatacommunities.org/id/metropolitan-district-council/wolverhampton","705183","Lodge Tyre Co.Limited","PE005190.1","15.00","Vehicle Maintenance - Spare Parts","190441083","23/03/2018","Fleet Services","Fleet Management","R3009"
"Wolverhampton City Council","http://opendatacommunities.org/id/metropolitan-district-council/wolverhampton","705183","Lodge Tyre Co.Limited","PE005190.1","25.00","Vehicle Maintenance - Spare Parts","190441083","23/03/2018","Fleet Services","Fleet Management","R3009"
"Wolverhampton City Council","http://opendatacommunities.org/id/metropolitan-district-council/wolverhampton","705183","Lodge Tyre Co.Limited","PE005190.1","50.00","Vehicle Maintenance - Spare Parts","190441083","23/03/2018","Fleet Services","Fleet Management","R3009"
"Wolverhampton City Council","http://opendatacommunities.org/id/metropolitan-district-council/wolverhampton","705183","Lodge Tyre Co.Limited","PE005190.1","55.95","Vehicle Maintenance - Spare Parts","190441083","23/03/2018","Fleet Services","Fleet Management","R3009"
"Wolverhampton City Council","http://opendatacommunities.org/id/metropolitan-district-council/wolverhampton","705183","Lodge Tyre Co.Limited","PE005190.1","54.00","Vehicle Maintenance - Spare Parts","190441083","23/03/2018","Fleet Services","Fleet Management","R3009"
"Wolverhampton City Council","http://opendatacommunities.org/id/metropolitan-district-council/wolverhampton","705183","Lodge Tyre Co.Limited","PE005190.1","54.00","Vehicle Maintenance - Spare Parts","190441083","23/03/2018","Fleet Services","Fleet Management","R3009"
"Wolverhampton City Council","http://opendatacommunities.org/id/metropolitan-district-council/wolverhampton","705183","Lodge Tyre Co.Limited","PE005190.1","195.00","Vehicle Maintenance - Spare Parts","190441083","23/03/2018","Fleet Services","Fleet Management","R3009"
"Wolverhampton City Council","http://opendatacommunities.org/id/metropolitan-district-council/wolverhampton","705183","Lodge Tyre Co.Limited","PE005190.1","50.00","Vehicle Maintenance - Spare Parts","190441083","23/03/2018","Fleet Services","Fleet Management","R3009"
"Wolverhampton City Council","http://opendatacommunities.org/id/metropolitan-district-council/wolverhampton","705183","Lodge Tyre Co.Limited","PE005190.1","50.00","Vehicle Maintenance - Spare Parts","190441083","23/03/2018","Fleet Services","Fleet Management","R3009"
"Wolverhampton City Council","http://opendatacommunities.org/id/metropolitan-district-council/wolverhampton","705183","Lodge Tyre Co.Limited","PE005190.1","780.00","Vehicle Maintenance - Spare Parts","190441083","23/03/2018","Fleet Services","Fleet Management","R3009"
"Wolverhampton City Council","http://opendatacommunities.org/id/metropolitan-district-council/wolverhampton","705183","Lodge Tyre Co.Limited","PE005190.1","240.00","Vehicle Maintenance - Spare Parts","190441083","23/03/2018","Fleet Services","Fleet Management","R3009"
"Wolverhampton City Council","http://opendatacommunities.org/id/metropolitan-district-council/wolverhampton","705183","Lodge Tyre Co.Limited","PE005190.1","390.00","Vehicle Maintenance - Spare Parts","190441083","23/03/2018","Fleet Services","Fleet Management","R3009"
"Wolverhampton City Council","http://opendatacommunities.org/id/metropolitan-district-council/wolverhampton","705183","Lodge Tyre Co.Limited","PE005190.1","15.00","Vehicle Maintenance - Spare Parts","190441083","23/03/2018","Fleet Services","Fleet Management","R3009"
"Wolverhampton City Council","http://opendatacommunities.org/id/metropolitan-district-council/wolverhampton","705183","Lodge Tyre Co.Limited","PE005190.1","20.00","Vehicle Maintenance - Spare Parts","190441083","23/03/2018","Fleet Services","Fleet Management","R3009"
"Wolverhampton City Council","http://opendatacommunities.org/id/metropolitan-district-council/wolverhampton","705183","Lodge Tyre Co.Limited","PE005190.1","54.00","Vehicle Maintenance - Spare Parts","190441083","23/03/2018","Fleet Services","Fleet Management","R3009"
"Wolverhampton City Council","http://opendatacommunities.org/id/metropolitan-district-council/wolverhampton","705183","Lodge Tyre Co.Limited","PE005190.1","210.00","Vehicle Maintenance - Spare Parts","190441083","23/03/2018","Fleet Services","Fleet Management","R3009"
"Wolverhampton City Council","http://opendatacommunities.org/id/metropolitan-district-council/wolverhampton","705183","Lodge Tyre Co.Limited","PE005190.1","780.00","Vehicle Maintenance - Spare Parts","190441083","23/03/2018","Fleet Services","Fleet Management","R3009"
"Wolverhampton City Council","http://opendatacommunities.org/id/metropolitan-district-council/wolverhampton","705183","Lodge Tyre Co.Limited","PE005190.1","390.00","Vehicle Maintenance - Spare Parts","190441083","23/03/2018","Fleet Services","Fleet Management","R3009"
"Wolverhampton City Council","http://opendatacommunities.org/id/metropolitan-district-council/wolverhampton","705183","Lodge Tyre Co.Limited","PE005190.1","25.00","Vehicle Maintenance - Spare Parts","190441083","23/03/2018","Fleet Services","Fleet Management","R3009"
"Wolverhampton City Council","http://opendatacommunities.org/id/metropolitan-district-council/wolverhampton","705183","Lodge Tyre Co.Limited","PE005190.1","54.00","Vehicle Maintenance - Spare Parts","190441083","23/03/2018","Fleet Services","Fleet Management","R3009"
"Wolverhampton City Council","http://opendatacommunities.org/id/metropolitan-district-council/wolverhampton","705183","Lodge Tyre Co.Limited","PE005190.1","215.00","Vehicle Maintenance - Spare Parts","190441083","23/03/2018","Fleet Services","Fleet Management","R3009"
"Wolverhampton City Council","http://opendatacommunities.org/id/metropolitan-district-council/wolverhampton","705183","Lodge Tyre Co.Limited","PE005190.1","20.00","Vehicle Maintenance - Spare Parts","190441083","23/03/2018","Fleet Services","Fleet Management","R3009"
"Wolverhampton City Council","http://opendatacommunities.org/id/metropolitan-district-council/wolverhampton","705183","Lodge Tyre Co.Limited","PE005190.1","66.00","Vehicle Maintenance - Spare Parts","190441083","23/03/2018","Fleet Services","Fleet Management","R3009"
"Wolverhampton City Council","http://opendatacommunities.org/id/metropolitan-district-council/wolverhampton","705183","Lodge Tyre Co.Limited","PE005190.1","132.00","Vehicle Maintenance - Spare Parts","190441083","23/03/2018","Fleet Services","Fleet Management","R3009"
"Wolverhampton City Council","http://opendatacommunities.org/id/metropolitan-district-council/wolverhampton","705183","Lodge Tyre Co.Limited","PE005190.1","60.00","Vehicle Maintenance - Spare Parts","190441083","23/03/2018","Fleet Services","Fleet Management","R3009"
"Wolverhampton City Council","http://opendatacommunities.org/id/metropolitan-district-council/wolverhampton","705183","Lodge Tyre Co.Limited","PE005190.1","60.00","Vehicle Maintenance - Spare Parts","190441083","23/03/2018","Fleet Services","Fleet Management","R3009"
"Wolverhampton City Council","http://opendatacommunities.org/id/metropolitan-district-council/wolverhampton","705183","Lodge Tyre Co.Limited","PE005190.1","56.00","Vehicle Maintenance - Spare Parts","190441083","23/03/2018","Fleet Services","Fleet Management","R3009"
"Wolverhampton City Council","http://opendatacommunities.org/id/metropolitan-district-council/wolverhampton","705183","Lodge Tyre Co.Limited","PE005190.1","66.00","Vehicle Maintenance - Spare Parts","190441083","23/03/2018","Fleet Services","Fleet Management","R3009"
"Wolverhampton City Council","http://opendatacommunities.org/id/metropolitan-district-council/wolverhampton","705183","Lodge Tyre Co.Limited","PE005190.1","66.00","Vehicle Maintenance - Spare Parts","190441083","23/03/2018","Fleet Services","Fleet Management","R3009"
"Wolverhampton City Council","http://opendatacommunities.org/id/metropolitan-district-council/wolverhampton","705183","Lodge Tyre Co.Limited","PE005190.1","60.00","Vehicle Maintenance - Spare Parts","190441083","23/03/2018","Fleet Services","Fleet Management","R3009"
"Wolverhampton City Council","http://opendatacommunities.org/id/metropolitan-district-council/wolverhampton","705183","Lodge Tyre Co.Limited","PE005190.1","179.00","Vehicle Maintenance - Spare Parts","190441083","23/03/2018","Fleet Services","Fleet Management","R3009"
"Wolverhampton City Council","http://opendatacommunities.org/id/metropolitan-district-council/wolverhampton","705183","Lodge Tyre Co.Limited","PE005190.1","66.00","Vehicle Maintenance - Spare Parts","190441083","23/03/2018","Fleet Services","Fleet Management","R3009"
"Wolverhampton City Council","http://opendatacommunities.org/id/metropolitan-district-council/wolverhampton","705183","Lodge Tyre Co.Limited","PE005190.1","60.00","Vehicle Maintenance - Spare Parts","190441083","23/03/2018","Fleet Services","Fleet Management","R3009"
"Wolverhampton City Council","http://opendatacommunities.org/id/metropolitan-district-council/wolverhampton","705183","Lodge Tyre Co.Limited","PE005190.1","240.00","Vehicle Maintenance - Spare Parts","190441083","23/03/2018","Fleet Services","Fleet Management","R3009"
"Wolverhampton City Council","http://opendatacommunities.org/id/metropolitan-district-council/wolverhampton","705183","Lodge Tyre Co.Limited","PE005190.1","20.00","Vehicle Maintenance - Spare Parts","190441083","23/03/2018","Fleet Services","Fleet Management","R3009"
"Wolverhampton City Council","http://opendatacommunities.org/id/metropolitan-district-council/wolverhampton","705183","Lodge Tyre Co.Limited","PE005190.1","12.00","Vehicle Maintenance - Spare Parts","190441083","23/03/2018","Fleet Services","Fleet Management","R3009"
"Wolverhampton City Council","http://opendatacommunities.org/id/metropolitan-district-council/wolverhampton","705183","Lodge Tyre Co.Limited","PE005190.1","59.00","Vehicle Maintenance - Spare Parts","190441083","23/03/2018","Fleet Services","Fleet Management","R3009"
"Wolverhampton City Council","http://opendatacommunities.org/id/metropolitan-district-council/wolverhampton","705183","Lodge Tyre Co.Limited","PE005190.1","15.00","Vehicle Maintenance - Spare Parts","190441083","23/03/2018","Fleet Services","Fleet Management","R3009"
"Wolverhampton City Council","http://opendatacommunities.org/id/metropolitan-district-council/wolverhampton","705183","Lodge Tyre Co.Limited","PE005190.1","58.00","Vehicle Maintenance - Spare Parts","190441083","23/03/2018","Fleet Services","Fleet Management","R3009"
"Wolverhampton City Council","http://opendatacommunities.org/id/metropolitan-district-council/wolverhampton","705183","Lodge Tyre Co.Limited","PE005190.1","60.00","Vehicle Maintenance - Spare Parts","190441083","23/03/2018","Fleet Services","Fleet Management","R3009"
"Wolverhampton City Council","http://opendatacommunities.org/id/metropolitan-district-council/wolverhampton","705183","Lodge Tyre Co.Limited","PE005190.1","15.00","Vehicle Maintenance - Spare Parts","190441083","23/03/2018","Fleet Services","Fleet Management","R3009"
"Wolverhampton City Council","http://opendatacommunities.org/id/metropolitan-district-council/wolverhampton","705183","Lodge Tyre Co.Limited","PE005190.1","120.00","Vehicle Maintenance - Spare Parts","190441083","23/03/2018","Fleet Services","Fleet Management","R3009"
"Wolverhampton City Council","http://opendatacommunities.org/id/metropolitan-district-council/wolverhampton","705183","Lodge Tyre Co.Limited","PE005190.1","54.00","Vehicle Maintenance - Spare Parts","190441083","23/03/2018","Fleet Services","Fleet Management","R3009"
"Wolverhampton City Council","http://opendatacommunities.org/id/metropolitan-district-council/wolverhampton","705183","Lodge Tyre Co.Limited","PE005190.1","66.00","Vehicle Maintenance - Spare Parts","190441083","23/03/2018","Fleet Services","Fleet Management","R3009"
"Wolverhampton City Council","http://opendatacommunities.org/id/metropolitan-district-council/wolverhampton","705183","Lodge Tyre Co.Limited","PE005190.1","216.00","Vehicle Maintenance - Spare Parts","190441083","23/03/2018","Fleet Services","Fleet Management","R3009"
"Wolverhampton City Council","http://opendatacommunities.org/id/metropolitan-district-council/wolverhampton","705183","Lodge Tyre Co.Limited","PE005190.1","10.00","Vehicle Maintenance - Spare Parts","190441083","23/03/2018","Fleet Services","Fleet Management","R3009"
"Wolverhampton City Council","http://opendatacommunities.org/id/metropolitan-district-council/wolverhampton","705183","Lodge Tyre Co.Limited","PE005190.1","30.00","Vehicle Maintenance - Spare Parts","190441083","23/03/2018","Fleet Services","Fleet Management","R3009"
"Wolverhampton City Council","http://opendatacommunities.org/id/metropolitan-district-council/wolverhampton","705183","Lodge Tyre Co.Limited","PE005190.1","390.00","Vehicle Maintenance - Spare Parts","190441083","23/03/2018","Fleet Services","Fleet Management","R3009"
"Wolverhampton City Council","http://opendatacommunities.org/id/metropolitan-district-council/wolverhampton","705183","Lodge Tyre Co.Limited","PE005190.1","30.00","Vehicle Maintenance - Spare Parts","190441083","23/03/2018","Fleet Services","Fleet Management","R3009"
"Wolverhampton City Council","http://opendatacommunities.org/id/metropolitan-district-council/wolverhampton","705183","Lodge Tyre Co.Limited","PE005190.1","195.00","Vehicle Maintenance - Spare Parts","190441083","23/03/2018","Fleet Services","Fleet Management","R3009"
"Wolverhampton City Council","http://opendatacommunities.org/id/metropolitan-district-council/wolverhampton","705183","Lodge Tyre Co.Limited","PE005190.1","25.00","Vehicle Maintenance - Spare Parts","190441083","23/03/2018","Fleet Services","Fleet Management","R3009"
"Wolverhampton City Council","http://opendatacommunities.org/id/metropolitan-district-council/wolverhampton","705183","Lodge Tyre Co.Limited","PE005190.1","195.00","Vehicle Maintenance - Spare Parts","190441083","23/03/2018","Fleet Services","Fleet Management","R3009"
"Wolverhampton City Council","http://opendatacommunities.org/id/metropolitan-district-council/wolverhampton","705183","Lodge Tyre Co.Limited","PE005190.1","57.50","Vehicle Maintenance - Spare Parts","190441083","23/03/2018","Fleet Services","Fleet Management","R3009"
"Wolverhampton City Council","http://opendatacommunities.org/id/metropolitan-district-council/wolverhampton","705183","Lodge Tyre Co.Limited","PE005190.1","111.00","Vehicle Maintenance - Spare Parts","190441083","23/03/2018","Fleet Services","Fleet Management","R3009"
"Wolverhampton City Council","http://opendatacommunities.org/id/metropolitan-district-council/wolverhampton","705183","Lodge Tyre Co.Limited","PE005190.1","10.00","Vehicle Maintenance - Spare Parts","190441083","23/03/2018","Fleet Services","Fleet Management","R3009"
"Wolverhampton City Council","http://opendatacommunities.org/id/metropolitan-district-council/wolverhampton","705183","Lodge Tyre Co.Limited","PE005190.1","15.00","Vehicle Maintenance - Spare Parts","190441083","23/03/2018","Fleet Services","Fleet Management","R3009"
"Wolverhampton City Council","http://opendatacommunities.org/id/metropolitan-district-council/wolverhampton","705183","Lodge Tyre Co.Limited","PE005190.1","120.00","Vehicle Maintenance - Spare Parts","190441083","23/03/2018","Fleet Services","Fleet Management","R3009"
"Wolverhampton City Council","http://opendatacommunities.org/id/metropolitan-district-council/wolverhampton","705183","Lodge Tyre Co.Limited","PE005190.1","60.00","Vehicle Maintenance - Spare Parts","190441083","23/03/2018","Fleet Services","Fleet Management","R3009"
"Wolverhampton City Council","http://opendatacommunities.org/id/metropolitan-district-council/wolverhampton","705183","Lodge Tyre Co.Limited","PE005190.1","195.00","Vehicle Maintenance - Spare Parts","190441083","23/03/2018","Fleet Services","Fleet Management","R3009"
"Wolverhampton City Council","http://opendatacommunities.org/id/metropolitan-district-council/wolverhampton","705183","Lodge Tyre Co.Limited","PE005190.1","195.00","Vehicle Maintenance - Spare Parts","190441083","23/03/2018","Fleet Services","Fleet Management","R3009"
"Wolverhampton City Council","http://opendatacommunities.org/id/metropolitan-district-council/wolverhampton","705183","Lodge Tyre Co.Limited","PE005190.1","197.22","Vehicle Maintenance - Spare Parts","190441083","23/03/2018","Fleet Services","Fleet Management","R3009"
"Wolverhampton City Council","http://opendatacommunities.org/id/metropolitan-district-council/wolverhampton","705183","Lodge Tyre Co.Limited","PE005190.1","75.00","Vehicle Maintenance - Spare Parts","190441083","23/03/2018","Fleet Services","Fleet Management","R3009"
"Wolverhampton City Council","http://opendatacommunities.org/id/metropolitan-district-council/wolverhampton","705183","Lodge Tyre Co.Limited","PE005190.1","25.00","Vehicle Maintenance - Spare Parts","190441083","23/03/2018","Fleet Services","Fleet Management","R3009"
"Wolverhampton City Council","http://opendatacommunities.org/id/metropolitan-district-council/wolverhampton","705183","Lodge Tyre Co.Limited","PE005190.1","30.00","Vehicle Maintenance - Spare Parts","190441083","23/03/2018","Fleet Services","Fleet Management","R3009"
"Wolverhampton City Council","http://opendatacommunities.org/id/metropolitan-district-council/wolverhampton","705183","Lodge Tyre Co.Limited","PE005190.1","30.00","Vehicle Maintenance - Spare Parts","190441083","23/03/2018","Fleet Services","Fleet Management","R3009"
"Wolverhampton City Council","http://opendatacommunities.org/id/metropolitan-district-council/wolverhampton","705183","Lodge Tyre Co.Limited","PE005190.1","210.00","Vehicle Maintenance - Spare Parts","190441083","23/03/2018","Fleet Services","Fleet Management","R3009"
"Wolverhampton City Council","http://opendatacommunities.org/id/metropolitan-district-council/wolverhampton","705183","Lodge Tyre Co.Limited","PE005190.1","25.00","Vehicle Maintenance - Spare Parts","190441083","23/03/2018","Fleet Services","Fleet Management","R3009"
"Wolverhampton City Council","http://opendatacommunities.org/id/metropolitan-district-council/wolverhampton","705183","Lodge Tyre Co.Limited","PE005190.1","195.00","Vehicle Maintenance - Spare Parts","190441083","23/03/2018","Fleet Services","Fleet Management","R3009"
"Wolverhampton City Council","http://opendatacommunities.org/id/metropolitan-district-council/wolverhampton","705183","Lodge Tyre Co.Limited","PE005190.1","390.00","Vehicle Maintenance - Spare Parts","190441083","23/03/2018","Fleet Services","Fleet Management","R3009"
"Wolverhampton City Council","http://opendatacommunities.org/id/metropolitan-district-council/wolverhampton","705183","Lodge Tyre Co.Limited","PE005190.1","30.00","Vehicle Maintenance - Spare Parts","190441083","23/03/2018","Fleet Services","Fleet Management","R3009"
"Wolverhampton City Council","http://opendatacommunities.org/id/metropolitan-district-council/wolverhampton","705183","Lodge Tyre Co.Limited","PE005190.1","30.00","Vehicle Maintenance - Spare Parts","190441083","23/03/2018","Fleet Services","Fleet Management","R3009"
"Wolverhampton City Council","http://opendatacommunities.org/id/metropolitan-district-council/wolverhampton","705183","Lodge Tyre Co.Limited","PE005190.1","195.00","Vehicle Maintenance - Spare Parts","190441083","23/03/2018","Fleet Services","Fleet Management","R3009"
"Wolverhampton City Council","http://opendatacommunities.org/id/metropolitan-district-council/wolverhampton","705183","Lodge Tyre Co.Limited","PE005190.1","56.00","Vehicle Maintenance - Spare Parts","190441083","23/03/2018","Fleet Services","Fleet Management","R3009"
"Wolverhampton City Council","http://opendatacommunities.org/id/metropolitan-district-council/wolverhampton","705183","Lodge Tyre Co.Limited","PE005190.1","195.00","Vehicle Maintenance - Spare Parts","190441083","23/03/2018","Fleet Services","Fleet Management","R3009"
"Wolverhampton City Council","http://opendatacommunities.org/id/metropolitan-district-council/wolverhampton","705183","Lodge Tyre Co.Limited","PE005190.1","60.00","Vehicle Maintenance - Spare Parts","190441083","23/03/2018","Fleet Services","Fleet Management","R3009"
"Wolverhampton City Council","http://opendatacommunities.org/id/metropolitan-district-council/wolverhampton","705183","Lodge Tyre Co.Limited","PE005190.1","195.00","Vehicle Maintenance - Spare Parts","190441083","23/03/2018","Fleet Services","Fleet Management","R3009"
"Wolverhampton City Council","http://opendatacommunities.org/id/metropolitan-district-council/wolverhampton","705183","Lodge Tyre Co.Limited","PE005190.1","15.00","Vehicle Maintenance - Spare Parts","190441083","23/03/2018","Fleet Services","Fleet Management","R3009"
"Wolverhampton City Council","http://opendatacommunities.org/id/metropolitan-district-council/wolverhampton","705183","Lodge Tyre Co.Limited","PE005190.1","120.00","Vehicle Maintenance - Spare Parts","190441083","23/03/2018","Fleet Services","Fleet Management","R3009"
"Wolverhampton City Council","http://opendatacommunities.org/id/metropolitan-district-council/wolverhampton","705183","Lodge Tyre Co.Limited","PE005190.1","60.00","Vehicle Maintenance - Spare Parts","190441083","23/03/2018","Fleet Services","Fleet Management","R3009"
"Wolverhampton City Council","http://opendatacommunities.org/id/metropolitan-district-council/wolverhampton","705183","Lodge Tyre Co.Limited","PE005190.1","30.00","Vehicle Maintenance - Spare Parts","190441083","23/03/2018","Fleet Services","Fleet Management","R3009"
"Wolverhampton City Council","http://opendatacommunities.org/id/metropolitan-district-council/wolverhampton","705183","Lodge Tyre Co.Limited","PE005190.1","60.00","Vehicle Maintenance - Spare Parts","190441083","23/03/2018","Fleet Services","Fleet Management","R3009"
"Wolverhampton City Council","http://opendatacommunities.org/id/metropolitan-district-council/wolverhampton","705183","Lodge Tyre Co.Limited","PE005190.1","85.75","Vehicle Maintenance - Spare Parts","190441083","23/03/2018","Fleet Services","Fleet Management","R3009"
"Wolverhampton City Council","http://opendatacommunities.org/id/metropolitan-district-council/wolverhampton","705183","Lodge Tyre Co.Limited","PE005190.1","15.00","Vehicle Maintenance - Spare Parts","190441083","23/03/2018","Fleet Services","Fleet Management","R3009"
"Wolverhampton City Council","http://opendatacommunities.org/id/metropolitan-district-council/wolverhampton","705183","Lodge Tyre Co.Limited","PE005190.1","280.00","Vehicle Maintenance - Spare Parts","190441083","23/03/2018","Fleet Services","Fleet Management","R3009"
"Wolverhampton City Council","http://opendatacommunities.org/id/metropolitan-district-council/wolverhampton","705183","Lodge Tyre Co.Limited","PE005190.1","30.00","Vehicle Maintenance - Spare Parts","190441083","23/03/2018","Fleet Services","Fleet Management","R3009"
"Wolverhampton City Council","http://opendatacommunities.org/id/metropolitan-district-council/wolverhampton","705183","Lodge Tyre Co.Limited","PE005190.1","120.00","Vehicle Maintenance - Spare Parts","190441083","23/03/2018","Fleet Services","Fleet Management","R3009"
"Wolverhampton City Council","http://opendatacommunities.org/id/metropolitan-district-council/wolverhampton","705183","Lodge Tyre Co.Limited","PE005190.1","60.00","Vehicle Maintenance - Spare Parts","190441083","23/03/2018","Fleet Services","Fleet Management","R3009"
"Wolverhampton City Council","http://opendatacommunities.org/id/metropolitan-district-council/wolverhampton","705183","Lodge Tyre Co.Limited","PE005190.1","15.00","Vehicle Maintenance - Spare Parts","190441083","23/03/2018","Fleet Services","Fleet Management","R3009"
"Wolverhampton City Council","http://opendatacommunities.org/id/metropolitan-district-council/wolverhampton","705183","Lodge Tyre Co.Limited","PE005190.1","390.00","Vehicle Maintenance - Spare Parts","190441083","23/03/2018","Fleet Services","Fleet Management","R3009"
"Wolverhampton City Council","http://opendatacommunities.org/id/metropolitan-district-council/wolverhampton","705183","Lodge Tyre Co.Limited","PE005190.1","3.00","Vehicle Maintenance - Spare Parts","190441083","23/03/2018","Fleet Services","Fleet Management","R3009"
"Wolverhampton City Council","http://opendatacommunities.org/id/metropolitan-district-council/wolverhampton","705183","Lodge Tyre Co.Limited","PE005190.1","108.00","Vehicle Maintenance - Spare Parts","190441083","23/03/2018","Fleet Services","Fleet Management","R3009"
"Wolverhampton City Council","http://opendatacommunities.org/id/metropolitan-district-council/wolverhampton","705183","Lodge Tyre Co.Limited","15R00982","-57.86","Vehicle Maintenance - Spare Parts","190435273","14/03/2018","Fleet Services","Fleet Management","R3009"
"Wolverhampton City Council","http://opendatacommunities.org/id/metropolitan-district-council/wolverhampton","705183","Lodge Tyre Co.Limited","PE005190C","-13,818.92","Vehicle Maintenance - Spare Parts","190441084","23/03/2018","Fleet Services","Fleet Management","R3009"
"Wolverhampton City Council","http://opendatacommunities.org/id/metropolitan-district-council/wolverhampton","705183","Lodge Tyre Co.Limited","PE005190","195.00","Vehicle Maintenance - Spare Parts","190440611","23/03/2018","Fleet Services","Fleet Management","R3009"
"Wolverhampton City Council","http://opendatacommunities.org/id/metropolitan-district-council/wolverhampton","705183","Lodge Tyre Co.Limited","PE005190","30.00","Vehicle Maintenance - Spare Parts","190440611","23/03/2018","Fleet Services","Fleet Management","R3009"
"Wolverhampton City Council","http://opendatacommunities.org/id/metropolitan-district-council/wolverhampton","705183","Lodge Tyre Co.Limited","PE005190","225.00","Vehicle Maintenance - Spare Parts","190440611","23/03/2018","Fleet Services","Fleet Management","R3009"
"Wolverhampton City Council","http://opendatacommunities.org/id/metropolitan-district-council/wolverhampton","705183","Lodge Tyre Co.Limited","PE005190","390.00","Vehicle Maintenance - Spare Parts","190440611","23/03/2018","Fleet Services","Fleet Management","R3009"
"Wolverhampton City Council","http://opendatacommunities.org/id/metropolitan-district-council/wolverhampton","705183","Lodge Tyre Co.Limited","PE005190","195.00","Vehicle Maintenance - Spare Parts","190440611","23/03/2018","Fleet Services","Fleet Management","R3009"
"Wolverhampton City Council","http://opendatacommunities.org/id/metropolitan-district-council/wolverhampton","705183","Lodge Tyre Co.Limited","PE005190","195.00","Vehicle Maintenance - Spare Parts","190440611","23/03/2018","Fleet Services","Fleet Management","R3009"
"Wolverhampton City Council","http://opendatacommunities.org/id/metropolitan-district-council/wolverhampton","705183","Lodge Tyre Co.Limited","PE005190","25.00","Vehicle Maintenance - Spare Parts","190440611","23/03/2018","Fleet Services","Fleet Management","R3009"
"Wolverhampton City Council","http://opendatacommunities.org/id/metropolitan-district-council/wolverhampton","705183","Lodge Tyre Co.Limited","PE005190","50.00","Vehicle Maintenance - Spare Parts","190440611","23/03/2018","Fleet Services","Fleet Management","R3009"
"Wolverhampton City Council","http://opendatacommunities.org/id/metropolitan-district-council/wolverhampton","705183","Lodge Tyre Co.Limited","PE005190","240.00","Vehicle Maintenance - Spare Parts","190440611","23/03/2018","Fleet Services","Fleet Management","R3009"
"Wolverhampton City Council","http://opendatacommunities.org/id/metropolitan-district-council/wolverhampton","705183","Lodge Tyre Co.Limited","PE005190","240.00","Vehicle Maintenance - Spare Parts","190440611","23/03/2018","Fleet Services","Fleet Management","R3009"
"Wolverhampton City Council","http://opendatacommunities.org/id/metropolitan-district-council/wolverhampton","705183","Lodge Tyre Co.Limited","PE005190","195.00","Vehicle Maintenance - Spare Parts","190440611","23/03/2018","Fleet Services","Fleet Management","R3009"
"Wolverhampton City Council","http://opendatacommunities.org/id/metropolitan-district-council/wolverhampton","705183","Lodge Tyre Co.Limited","PE005190","780.00","Vehicle Maintenance - Spare Parts","190440611","23/03/2018","Fleet Services","Fleet Management","R3009"
"Wolverhampton City Council","http://opendatacommunities.org/id/metropolitan-district-council/wolverhampton","705183","Lodge Tyre Co.Limited","PE005190","50.00","Vehicle Maintenance - Spare Parts","190440611","23/03/2018","Fleet Services","Fleet Management","R3009"
"Wolverhampton City Council","http://opendatacommunities.org/id/metropolitan-district-council/wolverhampton","705183","Lodge Tyre Co.Limited","PE005190","20.00","Vehicle Maintenance - Spare Parts","190440611","23/03/2018","Fleet Services","Fleet Management","R3009"
"Wolverhampton City Council","http://opendatacommunities.org/id/metropolitan-district-council/wolverhampton","705183","Lodge Tyre Co.Limited","PE005190","780.00","Vehicle Maintenance - Spare Parts","190440611","23/03/2018","Fleet Services","Fleet Management","R3009"
"Wolverhampton City Council","http://opendatacommunities.org/id/metropolitan-district-council/wolverhampton","705183","Lodge Tyre Co.Limited","PE005190","195.00","Vehicle Maintenance - Spare Parts","190440611","23/03/2018","Fleet Services","Fleet Management","R3009"
"Wolverhampton City Council","http://opendatacommunities.org/id/metropolitan-district-council/wolverhampton","705183","Lodge Tyre Co.Limited","PE005190","60.00","Vehicle Maintenance - Spare Parts","190440611","23/03/2018","Fleet Services","Fleet Management","R3009"
"Wolverhampton City Council","http://opendatacommunities.org/id/metropolitan-district-council/wolverhampton","705183","Lodge Tyre Co.Limited","PE005190","140.00","Vehicle Maintenance - Spare Parts","190440611","23/03/2018","Fleet Services","Fleet Management","R3009"
"Wolverhampton City Council","http://opendatacommunities.org/id/metropolitan-district-council/wolverhampton","705183","Lodge Tyre Co.Limited","PE005190","120.00","Vehicle Maintenance - Spare Parts","190440611","23/03/2018","Fleet Services","Fleet Management","R3009"
"Wolverhampton City Council","http://opendatacommunities.org/id/metropolitan-district-council/wolverhampton","705183","Lodge Tyre Co.Limited","PE005190","390.00","Vehicle Maintenance - Spare Parts","190440611","23/03/2018","Fleet Services","Fleet Management","R3009"
"Wolverhampton City Council","http://opendatacommunities.org/id/metropolitan-district-council/wolverhampton","705183","Lodge Tyre Co.Limited","PE005190","13,818.92","Vehicle Maintenance - Spare Parts","190440611","23/03/2018","Fleet Services","Fleet Management","R3009"
"Wolverhampton City Council","http://opendatacommunities.org/id/metropolitan-district-council/wolverhampton","705183","Lodge Tyre Co.Limited","PE005190","25.00","Vehicle Maintenance - Spare Parts","190440611","23/03/2018","Fleet Services","Fleet Management","R3009"
"Wolverhampton City Council","http://opendatacommunities.org/id/metropolitan-district-council/wolverhampton","705183","Lodge Tyre Co.Limited","PE005190","60.00","Vehicle Maintenance - Spare Parts","190440611","23/03/2018","Fleet Services","Fleet Management","R3009"
"Wolverhampton City Council","http://opendatacommunities.org/id/metropolitan-district-council/wolverhampton","705183","Lodge Tyre Co.Limited","PE005190","60.00","Vehicle Maintenance - Spare Parts","190440611","23/03/2018","Fleet Services","Fleet Management","R3009"
"Wolverhampton City Council","http://opendatacommunities.org/id/metropolitan-district-council/wolverhampton","705183","Lodge Tyre Co.Limited","PE005190","25.00","Vehicle Maintenance - Spare Parts","190440611","23/03/2018","Fleet Services","Fleet Management","R3009"
"Wolverhampton City Council","http://opendatacommunities.org/id/metropolitan-district-council/wolverhampton","705183","Lodge Tyre Co.Limited","PE005190","30.00","Vehicle Maintenance - Spare Parts","190440611","23/03/2018","Fleet Services","Fleet Management","R3009"
"Wolverhampton City Council","http://opendatacommunities.org/id/metropolitan-district-council/wolverhampton","705183","Lodge Tyre Co.Limited","PE005190","15.00","Vehicle Maintenance - Spare Parts","190440611","23/03/2018","Fleet Services","Fleet Management","R3009"
"Wolverhampton City Council","http://opendatacommunities.org/id/metropolitan-district-council/wolverhampton","705183","Lodge Tyre Co.Limited","PE005190","56.00","Vehicle Maintenance - Spare Parts","190440611","23/03/2018","Fleet Services","Fleet Management","R3009"
"Wolverhampton City Council","http://opendatacommunities.org/id/metropolitan-district-council/wolverhampton","705183","Lodge Tyre Co.Limited","PE005190","120.00","Vehicle Maintenance - Spare Parts","190440611","23/03/2018","Fleet Services","Fleet Management","R3009"
"Wolverhampton City Council","http://opendatacommunities.org/id/metropolitan-district-council/wolverhampton","705183","Lodge Tyre Co.Limited","PE005190","2.50","Vehicle Maintenance - Spare Parts","190440611","23/03/2018","Fleet Services","Fleet Management","R3009"
"Wolverhampton City Council","http://opendatacommunities.org/id/metropolitan-district-council/wolverhampton","705183","Lodge Tyre Co.Limited","PE005190","50.00","Vehicle Maintenance - Spare Parts","190440611","23/03/2018","Fleet Services","Fleet Management","R3009"
"Wolverhampton City Council","http://opendatacommunities.org/id/metropolitan-district-council/wolverhampton","705183","Lodge Tyre Co.Limited","PE005190","3.00","Vehicle Maintenance - Spare Parts","190440611","23/03/2018","Fleet Services","Fleet Management","R3009"
"Wolverhampton City Council","http://opendatacommunities.org/id/metropolitan-district-council/wolverhampton","705183","Lodge Tyre Co.Limited","PE005190","54.00","Vehicle Maintenance - Spare Parts","190440611","23/03/2018","Fleet Services","Fleet Management","R3009"
"Wolverhampton City Council","http://opendatacommunities.org/id/metropolitan-district-council/wolverhampton","705183","Lodge Tyre Co.Limited","PE005190","71.00","Vehicle Maintenance - Spare Parts","190440611","23/03/2018","Fleet Services","Fleet Management","R3009"
"Wolverhampton City Council","http://opendatacommunities.org/id/metropolitan-district-council/wolverhampton","705183","Lodge Tyre Co.Limited","PE005190","120.00","Vehicle Maintenance - Spare Parts","190440611","23/03/2018","Fleet Services","Fleet Management","R3009"
"Wolverhampton City Council","http://opendatacommunities.org/id/metropolitan-district-council/wolverhampton","705183","Lodge Tyre Co.Limited","PE005190","60.00","Vehicle Maintenance - Spare Parts","190440611","23/03/2018","Fleet Services","Fleet Management","R3009"
"Wolverhampton City Council","http://opendatacommunities.org/id/metropolitan-district-council/wolverhampton","705183","Lodge Tyre Co.Limited","PE005190","60.00","Vehicle Maintenance - Spare Parts","190440611","23/03/2018","Fleet Services","Fleet Management","R3009"
"Wolverhampton City Council","http://opendatacommunities.org/id/metropolitan-district-council/wolverhampton","705183","Lodge Tyre Co.Limited","PE005190","120.00","Vehicle Maintenance - Spare Parts","190440611","23/03/2018","Fleet Services","Fleet Management","R3009"
"Wolverhampton City Council","http://opendatacommunities.org/id/metropolitan-district-council/wolverhampton","705183","Lodge Tyre Co.Limited","PE005190","15.00","Vehicle Maintenance - Spare Parts","190440611","23/03/2018","Fleet Services","Fleet Management","R3009"
"Wolverhampton City Council","http://opendatacommunities.org/id/metropolitan-district-council/wolverhampton","705183","Lodge Tyre Co.Limited","PE005190","10.00","Vehicle Maintenance - Spare Parts","190440611","23/03/2018","Fleet Services","Fleet Management","R3009"
"Wolverhampton City Council","http://opendatacommunities.org/id/metropolitan-district-council/wolverhampton","705183","Lodge Tyre Co.Limited","PE005190","111.00","Vehicle Maintenance - Spare Parts","190440611","23/03/2018","Fleet Services","Fleet Management","R3009"
"Wolverhampton City Council","http://opendatacommunities.org/id/metropolitan-district-council/wolverhampton","705183","Lodge Tyre Co.Limited","PE005190","60.00","Vehicle Maintenance - Spare Parts","190440611","23/03/2018","Fleet Services","Fleet Management","R3009"
"Wolverhampton City Council","http://opendatacommunities.org/id/metropolitan-district-council/wolverhampton","705183","Lodge Tyre Co.Limited","PE005190","30.00","Vehicle Maintenance - Spare Parts","190440611","23/03/2018","Fleet Services","Fleet Management","R3009"
"Wolverhampton City Council","http://opendatacommunities.org/id/metropolitan-district-council/wolverhampton","705183","Lodge Tyre Co.Limited","PE005190","60.00","Vehicle Maintenance - Spare Parts","190440611","23/03/2018","Fleet Services","Fleet Management","R3009"
"Wolverhampton City Council","http://opendatacommunities.org/id/metropolitan-district-council/wolverhampton","705183","Lodge Tyre Co.Limited","PE005190","60.00","Vehicle Maintenance - Spare Parts","190440611","23/03/2018","Fleet Services","Fleet Management","R3009"
"Wolverhampton City Council","http://opendatacommunities.org/id/metropolitan-district-council/wolverhampton","705183","Lodge Tyre Co.Limited","PE005190","56.00","Vehicle Maintenance - Spare Parts","190440611","23/03/2018","Fleet Services","Fleet Management","R3009"
"Wolverhampton City Council","http://opendatacommunities.org/id/metropolitan-district-council/wolverhampton","705183","Lodge Tyre Co.Limited","PE005190","60.00","Vehicle Maintenance - Spare Parts","190440611","23/03/2018","Fleet Services","Fleet Management","R3009"
"Wolverhampton City Council","http://opendatacommunities.org/id/metropolitan-district-council/wolverhampton","705183","Lodge Tyre Co.Limited","PE005190","66.00","Vehicle Maintenance - Spare Parts","190440611","23/03/2018","Fleet Services","Fleet Management","R3009"
"Wolverhampton City Council","http://opendatacommunities.org/id/metropolitan-district-council/wolverhampton","705183","Lodge Tyre Co.Limited","PE005190","15.00","Vehicle Maintenance - Spare Parts","190440611","23/03/2018","Fleet Services","Fleet Management","R3009"
"Wolverhampton City Council","http://opendatacommunities.org/id/metropolitan-district-council/wolverhampton","705183","Lodge Tyre Co.Limited","PE005190","66.00","Vehicle Maintenance - Spare Parts","190440611","23/03/2018","Fleet Services","Fleet Management","R3009"
"Wolverhampton City Council","http://opendatacommunities.org/id/metropolitan-district-council/wolverhampton","705183","Lodge Tyre Co.Limited","PE005190","117.00","Vehicle Maintenance - Spare Parts","190440611","23/03/2018","Fleet Services","Fleet Management","R3009"
"Wolverhampton City Council","http://opendatacommunities.org/id/metropolitan-district-council/wolverhampton","705183","Lodge Tyre Co.Limited","PE005190","60.00","Vehicle Maintenance - Spare Parts","190440611","23/03/2018","Fleet Services","Fleet Management","R3009"
"Wolverhampton City Council","http://opendatacommunities.org/id/metropolitan-district-council/wolverhampton","705183","Lodge Tyre Co.Limited","PE005190","66.00","Vehicle Maintenance - Spare Parts","190440611","23/03/2018","Fleet Services","Fleet Management","R3009"
"Wolverhampton City Council","http://opendatacommunities.org/id/metropolitan-district-council/wolverhampton","705183","Lodge Tyre Co.Limited","PE005190","60.00","Vehicle Maintenance - Spare Parts","190440611","23/03/2018","Fleet Services","Fleet Management","R3009"
"Wolverhampton City Council","http://opendatacommunities.org/id/metropolitan-district-council/wolverhampton","705183","Lodge Tyre Co.Limited","PE005190","66.00","Vehicle Maintenance - Spare Parts","190440611","23/03/2018","Fleet Services","Fleet Management","R3009"
"Wolverhampton City Council","http://opendatacommunities.org/id/metropolitan-district-council/wolverhampton","705183","Lodge Tyre Co.Limited","PE005190","60.00","Vehicle Maintenance - Spare Parts","190440611","23/03/2018","Fleet Services","Fleet Management","R3009"
"Wolverhampton City Council","http://opendatacommunities.org/id/metropolitan-district-council/wolverhampton","705183","Lodge Tyre Co.Limited","PE005190","54.00","Vehicle Maintenance - Spare Parts","190440611","23/03/2018","Fleet Services","Fleet Management","R3009"
"Wolverhampton City Council","http://opendatacommunities.org/id/metropolitan-district-council/wolverhampton","705183","Lodge Tyre Co.Limited","PE005190","55.95","Vehicle Maintenance - Spare Parts","190440611","23/03/2018","Fleet Services","Fleet Management","R3009"
"Wolverhampton City Council","http://opendatacommunities.org/id/metropolitan-district-council/wolverhampton","705183","Lodge Tyre Co.Limited","PE005190","65.00","Vehicle Maintenance - Spare Parts","190440611","23/03/2018","Fleet Services","Fleet Management","R3009"
"Wolverhampton City Council","http://opendatacommunities.org/id/metropolitan-district-council/wolverhampton","705183","Lodge Tyre Co.Limited","PE005190","15.00","Vehicle Maintenance - Spare Parts","190440611","23/03/2018","Fleet Services","Fleet Management","R3009"
"Wolverhampton City Council","http://opendatacommunities.org/id/metropolitan-district-council/wolverhampton","705183","Lodge Tyre Co.Limited","PE005190","15.00","Vehicle Maintenance - Spare Parts","190440611","23/03/2018","Fleet Services","Fleet Management","R3009"
"Wolverhampton City Council","http://opendatacommunities.org/id/metropolitan-district-council/wolverhampton","705183","Lodge Tyre Co.Limited","PE005190","85.75","Vehicle Maintenance - Spare Parts","190440611","23/03/2018","Fleet Services","Fleet Management","R3009"
"Wolverhampton City Council","http://opendatacommunities.org/id/metropolitan-district-council/wolverhampton","705183","Lodge Tyre Co.Limited","PE005190","15.00","Vehicle Maintenance - Spare Parts","190440611","23/03/2018","Fleet Services","Fleet Management","R3009"
"Wolverhampton City Council","http://opendatacommunities.org/id/metropolitan-district-council/wolverhampton","705183","Lodge Tyre Co.Limited","PE005190","60.00","Vehicle Maintenance - Spare Parts","190440611","23/03/2018","Fleet Services","Fleet Management","R3009"
"Wolverhampton City Council","http://opendatacommunities.org/id/metropolitan-district-council/wolverhampton","705183","Lodge Tyre Co.Limited","PE005190","58.00","Vehicle Maintenance - Spare Parts","190440611","23/03/2018","Fleet Services","Fleet Management","R3009"
"Wolverhampton City Council","http://opendatacommunities.org/id/metropolitan-district-council/wolverhampton","705183","Lodge Tyre Co.Limited","PE005190","66.00","Vehicle Maintenance - Spare Parts","190440611","23/03/2018","Fleet Services","Fleet Management","R3009"
"Wolverhampton City Council","http://opendatacommunities.org/id/metropolitan-district-council/wolverhampton","705183","Lodge Tyre Co.Limited","PE005190","15.00","Vehicle Maintenance - Spare Parts","190440611","23/03/2018","Fleet Services","Fleet Management","R3009"
"Wolverhampton City Council","http://opendatacommunities.org/id/metropolitan-district-council/wolverhampton","705183","Lodge Tyre Co.Limited","PE005190","56.00","Vehicle Maintenance - Spare Parts","190440611","23/03/2018","Fleet Services","Fleet Management","R3009"
"Wolverhampton City Council","http://opendatacommunities.org/id/metropolitan-district-council/wolverhampton","705183","Lodge Tyre Co.Limited","PE005190","54.00","Vehicle Maintenance - Spare Parts","190440611","23/03/2018","Fleet Services","Fleet Management","R3009"
"Wolverhampton City Council","http://opendatacommunities.org/id/metropolitan-district-council/wolverhampton","705183","Lodge Tyre Co.Limited","PE005190","66.00","Vehicle Maintenance - Spare Parts","190440611","23/03/2018","Fleet Services","Fleet Management","R3009"
"Wolverhampton City Council","http://opendatacommunities.org/id/metropolitan-district-council/wolverhampton","705183","Lodge Tyre Co.Limited","PE005190","108.00","Vehicle Maintenance - Spare Parts","190440611","23/03/2018","Fleet Services","Fleet Management","R3009"
"Wolverhampton City Council","http://opendatacommunities.org/id/metropolitan-district-council/wolverhampton","705183","Lodge Tyre Co.Limited","PE005190","132.00","Vehicle Maintenance - Spare Parts","190440611","23/03/2018","Fleet Services","Fleet Management","R3009"
"Wolverhampton City Council","http://opendatacommunities.org/id/metropolitan-district-council/wolverhampton","705183","Lodge Tyre Co.Limited","PE005190","120.00","Vehicle Maintenance - Spare Parts","190440611","23/03/2018","Fleet Services","Fleet Management","R3009"
"Wolverhampton City Council","http://opendatacommunities.org/id/metropolitan-district-council/wolverhampton","705183","Lodge Tyre Co.Limited","PE005190","66.00","Vehicle Maintenance - Spare Parts","190440611","23/03/2018","Fleet Services","Fleet Management","R3009"
"Wolverhampton City Council","http://opendatacommunities.org/id/metropolitan-district-council/wolverhampton","705183","Lodge Tyre Co.Limited","PE005190","54.00","Vehicle Maintenance - Spare Parts","190440611","23/03/2018","Fleet Services","Fleet Management","R3009"
"Wolverhampton City Council","http://opendatacommunities.org/id/metropolitan-district-council/wolverhampton","705183","Lodge Tyre Co.Limited","PE005190","54.00","Vehicle Maintenance - Spare Parts","190440611","23/03/2018","Fleet Services","Fleet Management","R3009"
"Wolverhampton City Council","http://opendatacommunities.org/id/metropolitan-district-council/wolverhampton","705183","Lodge Tyre Co.Limited","PE005190","60.00","Vehicle Maintenance - Spare Parts","190440611","23/03/2018","Fleet Services","Fleet Management","R3009"
"Wolverhampton City Council","http://opendatacommunities.org/id/metropolitan-district-council/wolverhampton","705183","Lodge Tyre Co.Limited","PE005190","179.00","Vehicle Maintenance - Spare Parts","190440611","23/03/2018","Fleet Services","Fleet Management","R3009"
"Wolverhampton City Council","http://opendatacommunities.org/id/metropolitan-district-council/wolverhampton","705183","Lodge Tyre Co.Limited","PE005190","120.00","Vehicle Maintenance - Spare Parts","190440611","23/03/2018","Fleet Services","Fleet Management","R3009"
"Wolverhampton City Council","http://opendatacommunities.org/id/metropolitan-district-council/wolverhampton","705183","Lodge Tyre Co.Limited","PE005190","15.00","Vehicle Maintenance - Spare Parts","190440611","23/03/2018","Fleet Services","Fleet Management","R3009"
"Wolverhampton City Council","http://opendatacommunities.org/id/metropolitan-district-council/wolverhampton","705183","Lodge Tyre Co.Limited","PE005190","180.00","Vehicle Maintenance - Spare Parts","190440611","23/03/2018","Fleet Services","Fleet Management","R3009"
"Wolverhampton City Council","http://opendatacommunities.org/id/metropolitan-district-council/wolverhampton","705183","Lodge Tyre Co.Limited","PE005190","25.00","Vehicle Maintenance - Spare Parts","190440611","23/03/2018","Fleet Services","Fleet Management","R3009"
"Wolverhampton City Council","http://opendatacommunities.org/id/metropolitan-district-council/wolverhampton","705183","Lodge Tyre Co.Limited","PE005190","25.00","Vehicle Maintenance - Spare Parts","190440611","23/03/2018","Fleet Services","Fleet Management","R3009"
"Wolverhampton City Council","http://opendatacommunities.org/id/metropolitan-district-council/wolverhampton","705183","Lodge Tyre Co.Limited","PE005190","30.00","Vehicle Maintenance - Spare Parts","190440611","23/03/2018","Fleet Services","Fleet Management","R3009"
"Wolverhampton City Council","http://opendatacommunities.org/id/metropolitan-district-council/wolverhampton","705183","Lodge Tyre Co.Limited","PE005190","30.00","Vehicle Maintenance - Spare Parts","190440611","23/03/2018","Fleet Services","Fleet Management","R3009"
"Wolverhampton City Council","http://opendatacommunities.org/id/metropolitan-district-council/wolverhampton","705183","Lodge Tyre Co.Limited","PE005190","210.00","Vehicle Maintenance - Spare Parts","190440611","23/03/2018","Fleet Services","Fleet Management","R3009"
"Wolverhampton City Council","http://opendatacommunities.org/id/metropolitan-district-council/wolverhampton","705183","Lodge Tyre Co.Limited","PE005190","25.00","Vehicle Maintenance - Spare Parts","190440611","23/03/2018","Fleet Services","Fleet Management","R3009"
"Wolverhampton City Council","http://opendatacommunities.org/id/metropolitan-district-council/wolverhampton","705183","Lodge Tyre Co.Limited","PE005190","780.00","Vehicle Maintenance - Spare Parts","190440611","23/03/2018","Fleet Services","Fleet Management","R3009"
"Wolverhampton City Council","http://opendatacommunities.org/id/metropolitan-district-council/wolverhampton","705183","Lodge Tyre Co.Limited","PE005190","25.00","Vehicle Maintenance - Spare Parts","190440611","23/03/2018","Fleet Services","Fleet Management","R3009"
"Wolverhampton City Council","http://opendatacommunities.org/id/metropolitan-district-council/wolverhampton","705183","Lodge Tyre Co.Limited","PE005190","210.00","Vehicle Maintenance - Spare Parts","190440611","23/03/2018","Fleet Services","Fleet Management","R3009"
"Wolverhampton City Council","http://opendatacommunities.org/id/metropolitan-district-council/wolverhampton","705183","Lodge Tyre Co.Limited","PE005190","30.00","Vehicle Maintenance - Spare Parts","190440611","23/03/2018","Fleet Services","Fleet Management","R3009"
"Wolverhampton City Council","http://opendatacommunities.org/id/metropolitan-district-council/wolverhampton","705183","Lodge Tyre Co.Limited","PE005190","75.00","Vehicle Maintenance - Spare Parts","190440611","23/03/2018","Fleet Services","Fleet Management","R3009"
"Wolverhampton City Council","http://opendatacommunities.org/id/metropolitan-district-council/wolverhampton","705183","Lodge Tyre Co.Limited","PE005190","30.00","Vehicle Maintenance - Spare Parts","190440611","23/03/2018","Fleet Services","Fleet Management","R3009"
"Wolverhampton City Council","http://opendatacommunities.org/id/metropolitan-district-council/wolverhampton","705183","Lodge Tyre Co.Limited","PE005190","195.00","Vehicle Maintenance - Spare Parts","190440611","23/03/2018","Fleet Services","Fleet Management","R3009"
"Wolverhampton City Council","http://opendatacommunities.org/id/metropolitan-district-council/wolverhampton","705183","Lodge Tyre Co.Limited","PE005190","195.00","Vehicle Maintenance - Spare Parts","190440611","23/03/2018","Fleet Services","Fleet Management","R3009"
"Wolverhampton City Council","http://opendatacommunities.org/id/metropolitan-district-council/wolverhampton","705183","Lodge Tyre Co.Limited","PE005190","30.00","Vehicle Maintenance - Spare Parts","190440611","23/03/2018","Fleet Services","Fleet Management","R3009"
"Wolverhampton City Council","http://opendatacommunities.org/id/metropolitan-district-council/wolverhampton","705183","Lodge Tyre Co.Limited","PE005190","57.50","Vehicle Maintenance - Spare Parts","190440611","23/03/2018","Fleet Services","Fleet Management","R3009"
"Wolverhampton City Council","http://opendatacommunities.org/id/metropolitan-district-council/wolverhampton","705183","Lodge Tyre Co.Limited","PE005190","390.00","Vehicle Maintenance - Spare Parts","190440611","23/03/2018","Fleet Services","Fleet Management","R3009"
"Wolverhampton City Council","http://opendatacommunities.org/id/metropolitan-district-council/wolverhampton","705183","Lodge Tyre Co.Limited","PE005190","60.00","Vehicle Maintenance - Spare Parts","190440611","23/03/2018","Fleet Services","Fleet Management","R3009"
"Wolverhampton City Council","http://opendatacommunities.org/id/metropolitan-district-council/wolverhampton","705183","Lodge Tyre Co.Limited","PE005190","390.00","Vehicle Maintenance - Spare Parts","190440611","23/03/2018","Fleet Services","Fleet Management","R3009"
"Wolverhampton City Council","http://opendatacommunities.org/id/metropolitan-district-council/wolverhampton","705183","Lodge Tyre Co.Limited","PE005190","10.00","Vehicle Maintenance - Spare Parts","190440611","23/03/2018","Fleet Services","Fleet Management","R3009"
"Wolverhampton City Council","http://opendatacommunities.org/id/metropolitan-district-council/wolverhampton","705183","Lodge Tyre Co.Limited","PE005190","195.00","Vehicle Maintenance - Spare Parts","190440611","23/03/2018","Fleet Services","Fleet Management","R3009"
"Wolverhampton City Council","http://opendatacommunities.org/id/metropolitan-district-council/wolverhampton","705183","Lodge Tyre Co.Limited","PE005190","390.00","Vehicle Maintenance - Spare Parts","190440611","23/03/2018","Fleet Services","Fleet Management","R3009"
"Wolverhampton City Council","http://opendatacommunities.org/id/metropolitan-district-council/wolverhampton","705183","Lodge Tyre Co.Limited","PE005190","195.00","Vehicle Maintenance - Spare Parts","190440611","23/03/2018","Fleet Services","Fleet Management","R3009"
"Wolverhampton City Council","http://opendatacommunities.org/id/metropolitan-district-council/wolverhampton","705183","Lodge Tyre Co.Limited","PE005190","197.22","Vehicle Maintenance - Spare Parts","190440611","23/03/2018","Fleet Services","Fleet Management","R3009"
"Wolverhampton City Council","http://opendatacommunities.org/id/metropolitan-district-council/wolverhampton","705183","Lodge Tyre Co.Limited","PE005190","20.00","Vehicle Maintenance - Spare Parts","190440611","23/03/2018","Fleet Services","Fleet Management","R3009"
"Wolverhampton City Council","http://opendatacommunities.org/id/metropolitan-district-council/wolverhampton","705183","Lodge Tyre Co.Limited","PE005190","54.00","Vehicle Maintenance - Spare Parts","190440611","23/03/2018","Fleet Services","Fleet Management","R3009"
"Wolverhampton City Council","http://opendatacommunities.org/id/metropolitan-district-council/wolverhampton","705183","Lodge Tyre Co.Limited","PE005190","15.00","Vehicle Maintenance - Spare Parts","190440611","23/03/2018","Fleet Services","Fleet Management","R3009"
"Wolverhampton City Council","http://opendatacommunities.org/id/metropolitan-district-council/wolverhampton","705183","Lodge Tyre Co.Limited","PE005190","3.00","Vehicle Maintenance - Spare Parts","190440611","23/03/2018","Fleet Services","Fleet Management","R3009"
"Wolverhampton City Council","http://opendatacommunities.org/id/metropolitan-district-council/wolverhampton","705183","Lodge Tyre Co.Limited","PE005190","216.00","Vehicle Maintenance - Spare Parts","190440611","23/03/2018","Fleet Services","Fleet Management","R3009"
"Wolverhampton City Council","http://opendatacommunities.org/id/metropolitan-district-council/wolverhampton","705183","Lodge Tyre Co.Limited","PE005190","215.00","Vehicle Maintenance - Spare Parts","190440611","23/03/2018","Fleet Services","Fleet Management","R3009"
"Wolverhampton City Council","http://opendatacommunities.org/id/metropolitan-district-council/wolverhampton","705183","Lodge Tyre Co.Limited","PE005190","280.00","Vehicle Maintenance - Spare Parts","190440611","23/03/2018","Fleet Services","Fleet Management","R3009"
"Wolverhampton City Council","http://opendatacommunities.org/id/metropolitan-district-council/wolverhampton","705183","Lodge Tyre Co.Limited","PE005190","20.00","Vehicle Maintenance - Spare Parts","190440611","23/03/2018","Fleet Services","Fleet Management","R3009"
"Wolverhampton City Council","http://opendatacommunities.org/id/metropolitan-district-council/wolverhampton","705183","Lodge Tyre Co.Limited","PE005190","20.00","Vehicle Maintenance - Spare Parts","190440611","23/03/2018","Fleet Services","Fleet Management","R3009"
"Wolverhampton City Council","http://opendatacommunities.org/id/metropolitan-district-council/wolverhampton","705183","Lodge Tyre Co.Limited","PE005190","12.00","Vehicle Maintenance - Spare Parts","190440611","23/03/2018","Fleet Services","Fleet Management","R3009"
"Wolverhampton City Council","http://opendatacommunities.org/id/metropolitan-district-council/wolverhampton","705183","Lodge Tyre Co.Limited","PE005190","54.00","Vehicle Maintenance - Spare Parts","190440611","23/03/2018","Fleet Services","Fleet Management","R3009"
"Wolverhampton City Council","http://opendatacommunities.org/id/metropolitan-district-council/wolverhampton","705183","Lodge Tyre Co.Limited","PE005190","216.00","Vehicle Maintenance - Spare Parts","190440611","23/03/2018","Fleet Services","Fleet Management","R3009"
"Wolverhampton City Council","http://opendatacommunities.org/id/metropolitan-district-council/wolverhampton","705183","Lodge Tyre Co.Limited","PE005190","59.00","Vehicle Maintenance - Spare Parts","190440611","23/03/2018","Fleet Services","Fleet Management","R3009"
"Wolverhampton City Council","http://opendatacommunities.org/id/metropolitan-district-council/wolverhampton","705183","Lodge Tyre Co.Limited","PE005190","15.00","Vehicle Maintenance - Spare Parts","190440611","23/03/2018","Fleet Services","Fleet Management","R3009"
"Wolverhampton City Council","http://opendatacommunities.org/id/metropolitan-district-council/wolverhampton","705183","Lodge Tyre Co.Limited","PE005190","15.00","Vehicle Maintenance - Spare Parts","190440611","23/03/2018","Fleet Services","Fleet Management","R3009"
"Wolverhampton City Council","http://opendatacommunities.org/id/metropolitan-district-council/wolverhampton","705183","Lodge Tyre Co.Limited","PE005190","3.00","Vehicle Maintenance - Spare Parts","190440611","23/03/2018","Fleet Services","Fleet Management","R3009"
"Wolverhampton City Council","http://opendatacommunities.org/id/metropolitan-district-council/wolverhampton","705183","Lodge Tyre Co.Limited","PE005190","15.00","Vehicle Maintenance - Spare Parts","190440611","23/03/2018","Fleet Services","Fleet Management","R3009"
"Wolverhampton City Council","http://opendatacommunities.org/id/metropolitan-district-council/wolverhampton","705183","Lodge Tyre Co.Limited","PE005190","55.00","Vehicle Maintenance - Spare Parts","190440611","23/03/2018","Fleet Services","Fleet Management","R3009"
"Wolverhampton City Council","http://opendatacommunities.org/id/metropolitan-district-council/wolverhampton","705183","Lodge Tyre Co.Limited","PE005190","59.00","Vehicle Maintenance - Spare Parts","190440611","23/03/2018","Fleet Services","Fleet Management","R3009"
"Wolverhampton City Council","http://opendatacommunities.org/id/metropolitan-district-council/wolverhampton","705183","Lodge Tyre Co.Limited","PE005190","12.00","Vehicle Maintenance - Spare Parts","190440611","23/03/2018","Fleet Services","Fleet Management","R3009"
"Wolverhampton City Council","http://opendatacommunities.org/id/metropolitan-district-council/wolverhampton","705183","Lodge Tyre Co.Limited","PE005190","3.00","Vehicle Maintenance - Spare Parts","190440611","23/03/2018","Fleet Services","Fleet Management","R3009"
"Wolverhampton City Council","http://opendatacommunities.org/id/metropolitan-district-council/wolverhampton","705183","Lodge Tyre Co.Limited","PE005190","390.00","Vehicle Maintenance - Spare Parts","190440611","23/03/2018","Fleet Services","Fleet Management","R3009"
"Wolverhampton City Council","http://opendatacommunities.org/id/metropolitan-district-council/wolverhampton","705183","Lodge Tyre Co.Limited","PE005190","15.00","Vehicle Maintenance - Spare Parts","190440611","23/03/2018","Fleet Services","Fleet Management","R3009"
"Wolverhampton City Council","http://opendatacommunities.org/id/metropolitan-district-council/wolverhampton","705183","Lodge Tyre Co.Limited","PE005116.1","87.75","Vehicle Maintenance - Spare Parts","190435336","14/03/2018","Fleet Services","Fleet Management","R3009"
"Wolverhampton City Council","http://opendatacommunities.org/id/metropolitan-district-council/wolverhampton","705183","Lodge Tyre Co.Limited","PE005116.1","15.00","Vehicle Maintenance - Spare Parts","190435336","14/03/2018","Fleet Services","Fleet Management","R3009"
"Wolverhampton City Council","http://opendatacommunities.org/id/metropolitan-district-council/wolverhampton","705183","Lodge Tyre Co.Limited","PE005116.1","57.86","Vehicle Maintenance - Spare Parts","190435336","14/03/2018","Fleet Services","Fleet Management","R3009"
"Wolverhampton City Council","http://opendatacommunities.org/id/metropolitan-district-council/wolverhampton","705183","Lodge Tyre Co.Limited","PE005116.1","43.90","Vehicle Maintenance - Spare Parts","190435336","14/03/2018","Fleet Services","Fleet Management","R3009"
"Wolverhampton City Council","http://opendatacommunities.org/id/metropolitan-district-council/wolverhampton","705183","Lodge Tyre Co.Limited","PE005116.1","87.80","Vehicle Maintenance - Spare Parts","190435336","14/03/2018","Fleet Services","Fleet Management","R3009"
"Wolverhampton City Council","http://opendatacommunities.org/id/metropolitan-district-council/wolverhampton","705186","London Advice Services Alliance","37215/PW","725.00","Subscriptions","130207245","14/03/2018","Community Financial Support","Macmillan Welfare Rights Service","R4701"
"Wolverhampton City Council","http://opendatacommunities.org/id/metropolitan-district-council/wolverhampton","705210","Low Hill Community Association","240","500.00","Room Hire","130210630","23/03/2018","Skills","Employment Programmes","R2201"
"Wolverhampton City Council","http://opendatacommunities.org/id/metropolitan-district-council/wolverhampton","705249","M Dixon","80118","758.00","Services - Professional Fees","130210468","23/03/2018","Visitor Economy","The Clangers & TV Puppets","R4400"
"Wolverhampton City Council","http://opendatacommunities.org/id/metropolitan-district-council/wolverhampton","705274","M.K.G. (Food Products) Limited","077161","131.17","Provisions (Resale)","130207409","21/03/2018","Visitor Economy","Art Gallery Tea Room","R4102"
"Wolverhampton City Council","http://opendatacommunities.org/id/metropolitan-district-council/wolverhampton","705274","M.K.G. (Food Products) Limited","077897","207.32","Provisions (Resale)","130208170","26/03/2018","Visitor Economy","Art Gallery Tea Room","R4102"
"Wolverhampton City Council","http://opendatacommunities.org/id/metropolitan-district-council/wolverhampton","705274","M.K.G. (Food Products) Limited","077897","-207.32","Provisions (Resale)","130208170","26/03/2018","Visitor Economy","Art Gallery Tea Room","R4102"
"Wolverhampton City Council","http://opendatacommunities.org/id/metropolitan-district-council/wolverhampton","705274","M.K.G. (Food Products) Limited","077897","207.32","Provisions (Resale)","130208170","26/03/2018","Visitor Economy","Art Gallery Tea Room","R4102"
"Wolverhampton City Council","http://opendatacommunities.org/id/metropolitan-district-council/wolverhampton","705274","M.K.G. (Food Products) Limited","074536","197.16","Provisions (Resale)","130205832","07/03/2018","Visitor Economy","Art Gallery Tea Room","R4102"
"Wolverhampton City Council","http://opendatacommunities.org/id/metropolitan-district-council/wolverhampton","705274","M.K.G. (Food Products) Limited","074536","-197.16","Provisions (Resale)","130205832","07/03/2018","Visitor Economy","Art Gallery Tea Room","R4102"
"Wolverhampton City Council","http://opendatacommunities.org/id/metropolitan-district-council/wolverhampton","705274","M.K.G. (Food Products) Limited","074536","197.16","Provisions (Resale)","130205832","07/03/2018","Visitor Economy","Art Gallery Tea Room","R4102"
"Wolverhampton City Council","http://opendatacommunities.org/id/metropolitan-district-council/wolverhampton","705274","M.K.G. (Food Products) Limited","075663","209.26","Provisions (Resale)","130206657","14/03/2018","Visitor Economy","Art Gallery Tea Room","R4102"
"Wolverhampton City Council","http://opendatacommunities.org/id/metropolitan-district-council/wolverhampton","705274","M.K.G. (Food Products) Limited","075663","-209.26","Provisions (Resale)","130206657","14/03/2018","Visitor Economy","Art Gallery Tea Room","R4102"
"Wolverhampton City Council","http://opendatacommunities.org/id/metropolitan-district-council/wolverhampton","705274","M.K.G. (Food Products) Limited","075663","209.26","Provisions (Resale)","130206657","14/03/2018","Visitor Economy","Art Gallery Tea Room","R4102"
"Wolverhampton City Council","http://opendatacommunities.org/id/metropolitan-district-council/wolverhampton","705274","M.K.G. (Food Products) Limited","076120","178.71","Provisions (Resale)","130206660","14/03/2018","Visitor Economy","Art Gallery Tea Room","R4102"
"Wolverhampton City Council","http://opendatacommunities.org/id/metropolitan-district-council/wolverhampton","705274","M.K.G. (Food Products) Limited","076120","-178.71","Provisions (Resale)","130206660","14/03/2018","Visitor Economy","Art Gallery Tea Room","R4102"
"Wolverhampton City Council","http://opendatacommunities.org/id/metropolitan-district-council/wolverhampton","705274","M.K.G. (Food Products) Limited","076120","178.71","Provisions (Resale)","130206660","14/03/2018","Visitor Economy","Art Gallery Tea Room","R4102"
"Wolverhampton City Council","http://opendatacommunities.org/id/metropolitan-district-council/wolverhampton","705274","M.K.G. (Food Products) Limited","077525","325.85","Provisions (Resale)","130208168","23/03/2018","Visitor Economy","Art Gallery Tea Room","R4102"
"Wolverhampton City Council","http://opendatacommunities.org/id/metropolitan-district-council/wolverhampton","705274","M.K.G. (Food Products) Limited","077525","-325.85","Provisions (Resale)","130208168","23/03/2018","Visitor Economy","Art Gallery Tea Room","R4102"
"Wolverhampton City Council","http://opendatacommunities.org/id/metropolitan-district-council/wolverhampton","705274","M.K.G. (Food Products) Limited","077525","325.85","Provisions (Resale)","130208168","23/03/2018","Visitor Economy","Art Gallery Tea Room","R4102"
"Wolverhampton City Council","http://opendatacommunities.org/id/metropolitan-district-council/wolverhampton","705274","M.K.G. (Food Products) Limited","076773","381.32","Provisions (Resale)","130207407","21/03/2018","Visitor Economy","Art Gallery Tea Room","R4102"
"Wolverhampton City Council","http://opendatacommunities.org/id/metropolitan-district-council/wolverhampton","705274","M.K.G. (Food Products) Limited","074537","164.15","Provisions (Resale)","130205833","07/03/2018","Visitor Economy","Art Gallery Tea Room","R4102"
"Wolverhampton City Council","http://opendatacommunities.org/id/metropolitan-district-council/wolverhampton","705274","M.K.G. (Food Products) Limited","074537","-164.15","Provisions (Resale)","130205833","07/03/2018","Visitor Economy","Art Gallery Tea Room","R4102"
"Wolverhampton City Council","http://opendatacommunities.org/id/metropolitan-district-council/wolverhampton","705274","M.K.G. (Food Products) Limited","074537","164.15","Provisions (Resale)","130205833","07/03/2018","Visitor Economy","Art Gallery Tea Room","R4102"
"Wolverhampton City Council","http://opendatacommunities.org/id/metropolitan-district-council/wolverhampton","705274","M.K.G. (Food Products) Limited","074150","215.53","Provisions (Resale)","130205831","02/03/2018","Visitor Economy","Art Gallery Tea Room","R4102"
"Wolverhampton City Council","http://opendatacommunities.org/id/metropolitan-district-council/wolverhampton","705274","M.K.G. (Food Products) Limited","074150","-215.53","Provisions (Resale)","130205831","02/03/2018","Visitor Economy","Art Gallery Tea Room","R4102"
"Wolverhampton City Council","http://opendatacommunities.org/id/metropolitan-district-council/wolverhampton","705274","M.K.G. (Food Products) Limited","074150","215.53","Provisions (Resale)","130205831","02/03/2018","Visitor Economy","Art Gallery Tea Room","R4102"
"Wolverhampton City Council","http://opendatacommunities.org/id/metropolitan-district-council/wolverhampton","705274","M.K.G. (Food Products) Limited","077160","348.94","Provisions (Resale)","130207408","21/03/2018","Visitor Economy","Art Gallery Tea Room","R4102"
"Wolverhampton City Council","http://opendatacommunities.org/id/metropolitan-district-council/wolverhampton","705274","M.K.G. (Food Products) Limited","074933","352.68","Provisions (Resale)","130205834","07/03/2018","Visitor Economy","Art Gallery Tea Room","R4102"
"Wolverhampton City Council","http://opendatacommunities.org/id/metropolitan-district-council/wolverhampton","705274","M.K.G. (Food Products) Limited","074933","-352.68","Provisions (Resale)","130205834","07/03/2018","Visitor Economy","Art Gallery Tea Room","R4102"
"Wolverhampton City Council","http://opendatacommunities.org/id/metropolitan-district-council/wolverhampton","705274","M.K.G. (Food Products) Limited","074933","34.56","Provisions (Resale)","130205834","07/03/2018","Visitor Economy","Art Gallery Tea Room","R4102"
"Wolverhampton City Council","http://opendatacommunities.org/id/metropolitan-district-council/wolverhampton","705274","M.K.G. (Food Products) Limited","074933","318.12","Provisions (Resale)","130205834","07/03/2018","Visitor Economy","Art Gallery Tea Room","R4102"
"Wolverhampton City Council","http://opendatacommunities.org/id/metropolitan-district-council/wolverhampton","705274","M.K.G. (Food Products) Limited","075664","-356.41","Provisions (Resale)","130206658","14/03/2018","Visitor Economy","Art Gallery Tea Room","R4102"
"Wolverhampton City Council","http://opendatacommunities.org/id/metropolitan-district-council/wolverhampton","705274","M.K.G. (Food Products) Limited","075664","356.41","Provisions (Resale)","130206658","14/03/2018","Visitor Economy","Art Gallery Tea Room","R4102"
"Wolverhampton City Council","http://opendatacommunities.org/id/metropolitan-district-council/wolverhampton","705274","M.K.G. (Food Products) Limited","075664","356.41","Provisions (Resale)","130206658","14/03/2018","Visitor Economy","Art Gallery Tea Room","R4102"
"Wolverhampton City Council","http://opendatacommunities.org/id/metropolitan-district-council/wolverhampton","705274","M.K.G. (Food Products) Limited","076445","203.91","Provisions (Resale)","130207405","16/03/2018","Visitor Economy","Art Gallery Tea Room","R4102"
"Wolverhampton City Council","http://opendatacommunities.org/id/metropolitan-district-council/wolverhampton","705274","M.K.G. (Food Products) Limited","076445","-203.91","Provisions (Resale)","130207405","16/03/2018","Visitor Economy","Art Gallery Tea Room","R4102"
"Wolverhampton City Council","http://opendatacommunities.org/id/metropolitan-district-council/wolverhampton","705274","M.K.G. (Food Products) Limited","076445","13.99","Provisions (Resale)","130207405","16/03/2018","Visitor Economy","Art Gallery Tea Room","R4102"
"Wolverhampton City Council","http://opendatacommunities.org/id/metropolitan-district-council/wolverhampton","705274","M.K.G. (Food Products) Limited","076445","189.92","Provisions (Resale)","130207405","16/03/2018","Visitor Economy","Art Gallery Tea Room","R4102"
"Wolverhampton City Council","http://opendatacommunities.org/id/metropolitan-district-council/wolverhampton","705274","M.K.G. (Food Products) Limited","076118","277.94","Provisions (Resale)","130206659","14/03/2018","Visitor Economy","Art Gallery Tea Room","R4102"
"Wolverhampton City Council","http://opendatacommunities.org/id/metropolitan-district-council/wolverhampton","705274","M.K.G. (Food Products) Limited","076118","-277.94","Provisions (Resale)","130206659","14/03/2018","Visitor Economy","Art Gallery Tea Room","R4102"
"Wolverhampton City Council","http://opendatacommunities.org/id/metropolitan-district-council/wolverhampton","705274","M.K.G. (Food Products) Limited","076118","277.94","Provisions (Resale)","130206659","14/03/2018","Visitor Economy","Art Gallery Tea Room","R4102"
"Wolverhampton City Council","http://opendatacommunities.org/id/metropolitan-district-council/wolverhampton","705274","M.K.G. (Food Products) Limited","076444","359.37","Provisions (Resale)","130207404","16/03/2018","Visitor Economy","Art Gallery Tea Room","R4102"
"Wolverhampton City Council","http://opendatacommunities.org/id/metropolitan-district-council/wolverhampton","705274","M.K.G. (Food Products) Limited","076444","404.33","Provisions (Resale)","130207404","16/03/2018","Visitor Economy","Art Gallery Tea Room","R4102"
"Wolverhampton City Council","http://opendatacommunities.org/id/metropolitan-district-council/wolverhampton","705274","M.K.G. (Food Products) Limited","076444","-404.33","Provisions (Resale)","130207404","16/03/2018","Visitor Economy","Art Gallery Tea Room","R4102"
"Wolverhampton City Council","http://opendatacommunities.org/id/metropolitan-district-council/wolverhampton","705274","M.K.G. (Food Products) Limited","076444","44.96","Provisions (Resale)","130207404","16/03/2018","Visitor Economy","Art Gallery Tea Room","R4102"
"Wolverhampton City Council","http://opendatacommunities.org/id/metropolitan-district-council/wolverhampton","705274","M.K.G. (Food Products) Limited","077526","117.31","Provisions (Resale)","130208169","23/03/2018","Visitor Economy","Art Gallery Tea Room","R4102"
"Wolverhampton City Council","http://opendatacommunities.org/id/metropolitan-district-council/wolverhampton","705274","M.K.G. (Food Products) Limited","077526","-117.31","Provisions (Resale)","130208169","23/03/2018","Visitor Economy","Art Gallery Tea Room","R4102"
"Wolverhampton City Council","http://opendatacommunities.org/id/metropolitan-district-council/wolverhampton","705274","M.K.G. (Food Products) Limited","077526","117.31","Provisions (Resale)","130208169","23/03/2018","Visitor Economy","Art Gallery Tea Room","R4102"
"Wolverhampton City Council","http://opendatacommunities.org/id/metropolitan-district-council/wolverhampton","705274","M.K.G. (Food Products) Limited","076772","193.22","Provisions (Resale)","130207406","21/03/2018","Visitor Economy","Art Gallery Tea Room","R4102"
"Wolverhampton City Council","http://opendatacommunities.org/id/metropolitan-district-council/wolverhampton","705274","M.K.G. (Food Products) Limited","074934","142.97","Provisions (Resale)","130205835","07/03/2018","Visitor Economy","Art Gallery Tea Room","R4102"
"Wolverhampton City Council","http://opendatacommunities.org/id/metropolitan-district-council/wolverhampton","705274","M.K.G. (Food Products) Limited","074934","-142.97","Provisions (Resale)","130205835","07/03/2018","Visitor Economy","Art Gallery Tea Room","R4102"
"Wolverhampton City Council","http://opendatacommunities.org/id/metropolitan-district-council/wolverhampton","705274","M.K.G. (Food Products) Limited","074934","142.97","Provisions (Resale)","130205835","07/03/2018","Visitor Economy","Art Gallery Tea Room","R4102"
"Wolverhampton City Council","http://opendatacommunities.org/id/metropolitan-district-council/wolverhampton","705274","M.K.G. (Food Products) Limited","075340","234.55","Provisions (Resale)","130206656","09/03/2018","Visitor Economy","Art Gallery Tea Room","R4102"
"Wolverhampton City Council","http://opendatacommunities.org/id/metropolitan-district-council/wolverhampton","705274","M.K.G. (Food Products) Limited","075340","-234.55","Provisions (Resale)","130206656","09/03/2018","Visitor Economy","Art Gallery Tea Room","R4102"
"Wolverhampton City Council","http://opendatacommunities.org/id/metropolitan-district-council/wolverhampton","705274","M.K.G. (Food Products) Limited","075340","15.59","Provisions (Resale)","130206656","09/03/2018","Visitor Economy","Art Gallery Tea Room","R4102"
"Wolverhampton City Council","http://opendatacommunities.org/id/metropolitan-district-council/wolverhampton","705274","M.K.G. (Food Products) Limited","075340","218.96","Provisions (Resale)","130206656","09/03/2018","Visitor Economy","Art Gallery Tea Room","R4102"
"Wolverhampton City Council","http://opendatacommunities.org/id/metropolitan-district-council/wolverhampton","705274","M.K.G. (Food Products) Limited","074149","240.78","Provisions (Resale)","130205830","02/03/2018","Visitor Economy","Art Gallery Tea Room","R4102"
"Wolverhampton City Council","http://opendatacommunities.org/id/metropolitan-district-council/wolverhampton","705274","M.K.G. (Food Products) Limited","074149","-240.78","Provisions (Resale)","130205830","02/03/2018","Visitor Economy","Art Gallery Tea Room","R4102"
"Wolverhampton City Council","http://opendatacommunities.org/id/metropolitan-district-council/wolverhampton","705274","M.K.G. (Food Products) Limited","074149","240.78","Provisions (Resale)","130205830","02/03/2018","Visitor Economy","Art Gallery Tea Room","R4102"
"Wolverhampton City Council","http://opendatacommunities.org/id/metropolitan-district-council/wolverhampton","705281","Machine Mart Limited","1009042","40.14","Equipment - Purchase","130207804","14/03/2018","Fleet Services","Passenger Transport - General","R4000"
"Wolverhampton City Council","http://opendatacommunities.org/id/metropolitan-district-council/wolverhampton","705291","Madeley Academy Trust Limited","P16852020180316","650.00","Grant Payments to Individuals","190437072","21/03/2018","Looked After Children","LAC Education Team (LACE)","R6402"
"Wolverhampton City Council","http://opendatacommunities.org/id/metropolitan-district-council/wolverhampton","705303","Mail Solutions UK Limited","360419","156.00","Printing","130207667","07/03/2018","ICTS","Document Centre - General","R4300"
"Wolverhampton City Council","http://opendatacommunities.org/id/metropolitan-district-council/wolverhampton","705303","Mail Solutions UK Limited","360960","1,198.00","Printing","130209016","14/03/2018","ICTS","Document Centre - General","R4300"
"Wolverhampton City Council","http://opendatacommunities.org/id/metropolitan-district-council/wolverhampton","705303","Mail Solutions UK Limited","361150","795.01","Printing","130210262","21/03/2018","ICTS","Document Centre - General","R4300"
"Wolverhampton City Council","http://opendatacommunities.org/id/metropolitan-district-council/wolverhampton","705303","Mail Solutions UK Limited","360596","537.12","Printing","130208174","07/03/2018","ICTS","Document Centre - General","R4300"
"Wolverhampton City Council","http://opendatacommunities.org/id/metropolitan-district-council/wolverhampton","705360","Mars Drinks UK Limited","93555961","629.39","Services - Supplies and Services to service users","130206056","07/03/2018","Learning Disability Provider","City Links","R4408"
"Wolverhampton City Council","http://opendatacommunities.org/id/metropolitan-district-council/wolverhampton","705360","Mars Drinks UK Limited","93555961","-629.39","Services - Supplies and Services to service users","130206056","07/03/2018","Learning Disability Provider","City Links","R4408"
"Wolverhampton City Council","http://opendatacommunities.org/id/metropolitan-district-council/wolverhampton","705360","Mars Drinks UK Limited","93555961","154.12","Services - Supplies and Services to service users","130206056","07/03/2018","Learning Disability Provider","City Links","R4408"
"Wolverhampton City Council","http://opendatacommunities.org/id/metropolitan-district-council/wolverhampton","705360","Mars Drinks UK Limited","93555961","475.28","Services - Supplies and Services to service users","130206056","07/03/2018","Learning Disability Provider","City Links","R4408"
"Wolverhampton City Council","http://opendatacommunities.org/id/metropolitan-district-council/wolverhampton","705367","Marstons PLC","97821093","1,143.74","Provisions (Resale)","130207094","21/03/2018","Visitor Economy","The Little Civic","R4102"
"Wolverhampton City Council","http://opendatacommunities.org/id/metropolitan-district-council/wolverhampton","705428","Medicare First Limited","HSOC5663356","1,255.41","Agency Staff","130208359","14/03/2018","Child Protection","CIN/CP Social Work Unit - Area 7","R1100"
"Wolverhampton City Council","http://opendatacommunities.org/id/metropolitan-district-council/wolverhampton","705432","Medpage Limited T/A Easylink UK","65994","7,380.90","Plant, Equipment, Machinery & Computer Hardware","130207500","07/03/2018","-","Independent Living Service","C3000"
"Wolverhampton City Council","http://opendatacommunities.org/id/metropolitan-district-council/wolverhampton","705432","Medpage Limited T/A Easylink UK","65994","9.25","Plant, Equipment, Machinery & Computer Hardware","130207500","07/03/2018","-","Independent Living Service","C3000"
"Wolverhampton City Council","http://opendatacommunities.org/id/metropolitan-district-council/wolverhampton","705432","Medpage Limited T/A Easylink UK","66257","548.10","Plant, Equipment, Machinery & Computer Hardware","130210009","26/03/2018","-","Independent Living Service","C3000"
"Wolverhampton City Council","http://opendatacommunities.org/id/metropolitan-district-council/wolverhampton","705432","Medpage Limited T/A Easylink UK","66257","9.25","Plant, Equipment, Machinery & Computer Hardware","130210009","26/03/2018","-","Independent Living Service","C3000"
"Wolverhampton City Council","http://opendatacommunities.org/id/metropolitan-district-council/wolverhampton","705438","Mel Research Limited","260348","2,000.00","TPP - Public Health Contracts","130206485","07/03/2018","Management and Administration","Public Health Support Costs","R5060"
"Wolverhampton City Council","http://opendatacommunities.org/id/metropolitan-district-council/wolverhampton","705488","Michael Tromans & Co","251217-240318","4,532.50","Rent","190434834","14/03/2018","Facilities Management","10 King Street","R2200"
"Wolverhampton City Council","http://opendatacommunities.org/id/metropolitan-district-council/wolverhampton","705488","Michael Tromans & Co","251217-240318.","13.26","Rent","190434834","14/03/2018","Facilities Management","10 King Street","R2200"
"Wolverhampton City Council","http://opendatacommunities.org/id/metropolitan-district-council/wolverhampton","705488","Michael Tromans & Co","251217-240318","4,532.50","Rent","190434834","14/03/2018","Facilities Management","10 King Street","R2200"
"Wolverhampton City Council","http://opendatacommunities.org/id/metropolitan-district-council/wolverhampton","705488","Michael Tromans & Co","251217-240318.","13.26","Rent","190434834","14/03/2018","Facilities Management","10 King Street","R2200"
"Wolverhampton City Council","http://opendatacommunities.org/id/metropolitan-district-council/wolverhampton","705496","Midcounties Co-Operative Funeralcare","080/70070577","1,361.00","Services - Professional Fees","130208360","26/03/2018","Safeguarding","Court of Protection, Funerals and Protection of Property","R4400"
"Wolverhampton City Council","http://opendatacommunities.org/id/metropolitan-district-council/wolverhampton","705496","Midcounties Co-Operative Funeralcare","080/70070413","1,361.00","Services - Professional Fees","130207095","16/03/2018","Safeguarding","Court of Protection, Funerals and Protection of Property","R4400"
"Wolverhampton City Council","http://opendatacommunities.org/id/metropolitan-district-council/wolverhampton","705519","Midland Motascreens Limited","16339","145.00","Services - Professional Fees","190435276","14/03/2018","Fleet Services","Fleet Management","R4400"
"Wolverhampton City Council","http://opendatacommunities.org/id/metropolitan-district-council/wolverhampton","705520","Midland News Association Limited","I7459025","222.62","Marketing \ Non-staff advertising","130210014","21/03/2018","Planning","Planning","R4317"
"Wolverhampton City Council","http://opendatacommunities.org/id/metropolitan-district-council/wolverhampton","705520","Midland News Association Limited","I7457081","494.70","Marketing \ Non-staff advertising","130208182","21/03/2018","Operation & Maintenance of Existing Network","UTC - Utilities Organisations","R4317"
"Wolverhampton City Council","http://opendatacommunities.org/id/metropolitan-district-council/wolverhampton","705520","Midland News Association Limited","I7456312","395.76","Marketing \ Non-staff advertising","130208179","14/03/2018","Operation & Maintenance of Existing Network","UTC - Utilities Organisations","R4317"
"Wolverhampton City Council","http://opendatacommunities.org/id/metropolitan-district-council/wolverhampton","705520","Midland News Association Limited","I7460037","494.70","Marketing \ Non-staff advertising","130208189","26/03/2018","Operation & Maintenance of Existing Network","UTC - Utilities Organisations","R4317"
"Wolverhampton City Council","http://opendatacommunities.org/id/metropolitan-district-council/wolverhampton","705520","Midland News Association Limited","I7460270","445.22","Marketing \ Non-staff advertising","130208190","26/03/2018","Operation & Maintenance of Existing Network","UTC - Utilities Organisations","R4317"
"Wolverhampton City Council","http://opendatacommunities.org/id/metropolitan-district-council/wolverhampton","705520","Midland News Association Limited","I7455230","643.10","Marketing \ Non-staff advertising","130210902","26/03/2018","Operation & Maintenance of Existing Network","UTC - Utilities Organisations","R4317"
"Wolverhampton City Council","http://opendatacommunities.org/id/metropolitan-district-council/wolverhampton","705520","Midland News Association Limited","I7453492","371.02","Marketing \ Non-staff advertising","130206174","07/03/2018","Planning","Planning","R4317"
"Wolverhampton City Council","http://opendatacommunities.org/id/metropolitan-district-council/wolverhampton","705520","Midland News Association Limited","I7451600","445.22","Marketing \ Non-staff advertising","130206337","07/03/2018","Operation & Maintenance of Existing Network","UTC - Utilities Organisations","R4317"
"Wolverhampton City Council","http://opendatacommunities.org/id/metropolitan-district-council/wolverhampton","705520","Midland News Association Limited","I7459948","692.58","Marketing \ Non-staff advertising","130208187","26/03/2018","Licensing","Licensing - Private Hire Vehicles","R4317"
"Wolverhampton City Council","http://opendatacommunities.org/id/metropolitan-district-council/wolverhampton","705520","Midland News Association Limited","I7459762","346.28","Marketing \ Non-staff advertising","130208186","26/03/2018","Operation & Maintenance of Existing Network","UTC - Utilities Organisations","R4317"
"Wolverhampton City Council","http://opendatacommunities.org/id/metropolitan-district-council/wolverhampton","705520","Midland News Association Limited","I7451638","643.10","Marketing \ Non-staff advertising","130206338","07/03/2018","Operation & Maintenance of Existing Network","UTC - Utilities Organisations","R4317"
"Wolverhampton City Council","http://opendatacommunities.org/id/metropolitan-district-council/wolverhampton","705520","Midland News Association Limited","I7437612","445.22","Construction and Conversion","130210013","21/03/2018","-","Safety Programme","C1100"
"Wolverhampton City Council","http://opendatacommunities.org/id/metropolitan-district-council/wolverhampton","705520","Midland News Association Limited","I7454919","445.22","Marketing \ Non-staff advertising","130208176","14/03/2018","Operation & Maintenance of Existing Network","UTC - Utilities Organisations","R4317"
"Wolverhampton City Council","http://opendatacommunities.org/id/metropolitan-district-council/wolverhampton","705520","Midland News Association Limited","I7456393","395.76","Marketing \ Non-staff advertising","130208181","14/03/2018","Planning","Planning","R4317"
"Wolverhampton City Council","http://opendatacommunities.org/id/metropolitan-district-council/wolverhampton","705520","Midland News Association Limited","I7454752","1,558.30","Construction and Conversion","130206661","16/03/2018","-","Safety Programme","C1100"
"Wolverhampton City Council","http://opendatacommunities.org/id/metropolitan-district-council/wolverhampton","705520","Midland News Association Limited","I7457442","395.76","Marketing \ Non-staff advertising","130208183","21/03/2018","Operation & Maintenance of Existing Network","UTC - Utilities Organisations","R4317"
"Wolverhampton City Council","http://opendatacommunities.org/id/metropolitan-district-council/wolverhampton","705520","Midland News Association Limited","I7456266","445.22","Marketing \ Non-staff advertising","130208178","14/03/2018","Operation & Maintenance of Existing Network","UTC - Utilities Organisations","R4317"
"Wolverhampton City Council","http://opendatacommunities.org/id/metropolitan-district-council/wolverhampton","705520","Midland News Association Limited","I7456373","346.28","Marketing \ Non-staff advertising","130208180","14/03/2018","Operation & Maintenance of Existing Network","UTC - Utilities Organisations","R4317"
"Wolverhampton City Council","http://opendatacommunities.org/id/metropolitan-district-council/wolverhampton","705520","Midland News Association Limited","I7384666","500.00","Marketing \ Non-staff advertising","130210899","26/03/2018","Visitor Economy","Arts Publicity","R4317"
"Wolverhampton City Council","http://opendatacommunities.org/id/metropolitan-district-council/wolverhampton","705520","Midland News Association Limited","I7459581","1,243.89","Marketing \ Non-staff advertising","130208185","26/03/2018","The Hub","Central Advertising","R4317"
"Wolverhampton City Council","http://opendatacommunities.org/id/metropolitan-district-council/wolverhampton","705520","Midland News Association Limited","I7452795","445.22","Marketing \ Non-staff advertising","130206172","07/03/2018","Operation & Maintenance of Existing Network","UTC - Utilities Organisations","R4317"
"Wolverhampton City Council","http://opendatacommunities.org/id/metropolitan-district-council/wolverhampton","705520","Midland News Association Limited","I7436925","750.00","Marketing \ Non-staff advertising","130208025","09/03/2018","Corporate Communications","Communications & Marketing - General","R4317"
"Wolverhampton City Council","http://opendatacommunities.org/id/metropolitan-district-council/wolverhampton","705520","Midland News Association Limited","I7430804","1,187.28","Construction and Conversion","130210012","21/03/2018","-","GF - Accessing Growth Fund","C1100"
"Wolverhampton City Council","http://opendatacommunities.org/id/metropolitan-district-council/wolverhampton","705520","Midland News Association Limited","I7457743","395.76","Marketing \ Non-staff advertising","130208184","21/03/2018","Operation & Maintenance of Existing Network","UTC - Utilities Organisations","R4317"
"Wolverhampton City Council","http://opendatacommunities.org/id/metropolitan-district-council/wolverhampton","705520","Midland News Association Limited","I7455233","267.75","Staff Advertising Costs","130208177","14/03/2018","Capital Programme","Capital Programme Team","R1700"
"Wolverhampton City Council","http://opendatacommunities.org/id/metropolitan-district-council/wolverhampton","705520","Midland News Association Limited","I7453435","445.22","Marketing \ Non-staff advertising","130206173","07/03/2018","Operation & Maintenance of Existing Network","UTC - Utilities Organisations","R4317"
"Wolverhampton City Council","http://opendatacommunities.org/id/metropolitan-district-council/wolverhampton","705520","Midland News Association Limited","I7459949","445.22","Marketing \ Non-staff advertising","130208188","26/03/2018","Estates and Valuations","Other Premises ; Other","R4317"
"Wolverhampton City Council","http://opendatacommunities.org/id/metropolitan-district-council/wolverhampton","705520","Midland News Association Limited","I7435431","200.00","Marketing \ Non-staff advertising","130210900","26/03/2018","Strategic Organisation Development","Literature Festival","R4317"
"Wolverhampton City Council","http://opendatacommunities.org/id/metropolitan-district-council/wolverhampton","705520","Midland News Association Limited","I7435432","100.00","Marketing \ Non-staff advertising","130210901","26/03/2018","Strategic Organisation Development","Literature Festival","R4317"
"Wolverhampton City Council","http://opendatacommunities.org/id/metropolitan-district-council/wolverhampton","705520","Midland News Association Limited","ARINV/00000467","8,750.00","Marketing \ Non-staff advertising","130207670","23/03/2018","Central Corporate Budgets","Miscellaneous Corporate Costs","R4317"
"Wolverhampton City Council","http://opendatacommunities.org/id/metropolitan-district-council/wolverhampton","705525","Midland Quarry Products Limited","1980535552","33.84","Materials","130207808","26/03/2018","Highways Maintenance","Patching","R4007"
"Wolverhampton City Council","http://opendatacommunities.org/id/metropolitan-district-council/wolverhampton","705525","Midland Quarry Products Limited","1980529759","2,487.17","Materials","130205641","07/03/2018","Highways Maintenance","Patching","R4007"
"Wolverhampton City Council","http://opendatacommunities.org/id/metropolitan-district-council/wolverhampton","705525","Midland Quarry Products Limited","1980534665","2,964.74","Materials","130207501","21/03/2018","Highways Maintenance","Patching","R4007"
"Wolverhampton City Council","http://opendatacommunities.org/id/metropolitan-district-council/wolverhampton","705525","Midland Quarry Products Limited","1980531612","1,406.71","Materials","130206488","14/03/2018","Highways Maintenance","Patching","R4007"
"Wolverhampton City Council","http://opendatacommunities.org/id/metropolitan-district-council/wolverhampton","705525","Midland Quarry Products Limited","1980532695","1,014.74","Materials","130206799","14/03/2018","Highways Maintenance","Patching","R4007"
"Wolverhampton City Council","http://opendatacommunities.org/id/metropolitan-district-council/wolverhampton","705525","Midland Quarry Products Limited","1980535553","1,120.64","Materials","130207809","26/03/2018","Highways Maintenance","Patching","R4007"
"Wolverhampton City Council","http://opendatacommunities.org/id/metropolitan-district-council/wolverhampton","705525","Midland Quarry Products Limited","1980529760","705.82","Materials","130205642","07/03/2018","Highways Maintenance","Patching","R4007"
"Wolverhampton City Council","http://opendatacommunities.org/id/metropolitan-district-council/wolverhampton","705525","Midland Quarry Products Limited","1980533563","2,573.78","Materials","130207248","21/03/2018","Highways Maintenance","Patching","R4007"
"Wolverhampton City Council","http://opendatacommunities.org/id/metropolitan-district-council/wolverhampton","705525","Midland Quarry Products Limited","1980531610","45.28","Materials","130206486","14/03/2018","Highways Maintenance","Patching","R4007"
"Wolverhampton City Council","http://opendatacommunities.org/id/metropolitan-district-council/wolverhampton","705525","Midland Quarry Products Limited","1980533564","366.06","Materials","130207249","21/03/2018","Highways Maintenance","Patching","R4007"
"Wolverhampton City Council","http://opendatacommunities.org/id/metropolitan-district-council/wolverhampton","705525","Midland Quarry Products Limited","1980531611","1,689.77","Materials","130206487","14/03/2018","Highways Maintenance","Patching","R4007"
"Wolverhampton City Council","http://opendatacommunities.org/id/metropolitan-district-council/wolverhampton","705525","Midland Quarry Products Limited","1980530760","1,327.70","Materials","130206057","07/03/2018","Highways Maintenance","Patching","R4007"
"Wolverhampton City Council","http://opendatacommunities.org/id/metropolitan-district-council/wolverhampton","705525","Midland Quarry Products Limited","1980535554","247.70","Materials","130207810","26/03/2018","Highways Maintenance","Patching","R4007"
"Wolverhampton City Council","http://opendatacommunities.org/id/metropolitan-district-council/wolverhampton","705525","Midland Quarry Products Limited","1980532694","3,555.85","Materials","130206798","14/03/2018","Highways Maintenance","Patching","R4007"
"Wolverhampton City Council","http://opendatacommunities.org/id/metropolitan-district-council/wolverhampton","705534","Midlands Truck & Van Limited","88429348","5.36","Equipment - Purchase","190437015","21/03/2018","Fleet Services","Fleet Management","R4000"
"Wolverhampton City Council","http://opendatacommunities.org/id/metropolitan-district-council/wolverhampton","705534","Midlands Truck & Van Limited","83604896","770.56","Services - Professional Fees","190435299","14/03/2018","Fleet Services","Fleet Management","R4400"
"Wolverhampton City Council","http://opendatacommunities.org/id/metropolitan-district-council/wolverhampton","705534","Midlands Truck & Van Limited","83604896","136.50","Services - Professional Fees","190435299","14/03/2018","Fleet Services","Fleet Management","R4400"
"Wolverhampton City Council","http://opendatacommunities.org/id/metropolitan-district-council/wolverhampton","705534","Midlands Truck & Van Limited","83604896","210.00","Services - Professional Fees","190435299","14/03/2018","Fleet Services","Fleet Management","R4400"
"Wolverhampton City Council","http://opendatacommunities.org/id/metropolitan-district-council/wolverhampton","705534","Midlands Truck & Van Limited","83604896","168.00","Services - Professional Fees","190435299","14/03/2018","Fleet Services","Fleet Management","R4400"
"Wolverhampton City Council","http://opendatacommunities.org/id/metropolitan-district-council/wolverhampton","705534","Midlands Truck & Van Limited","83604896","20.00","Services - Professional Fees","190435299","14/03/2018","Fleet Services","Fleet Management","R4400"
"Wolverhampton City Council","http://opendatacommunities.org/id/metropolitan-district-council/wolverhampton","705534","Midlands Truck & Van Limited","83604896","105.58","Services - Professional Fees","190435299","14/03/2018","Fleet Services","Fleet Management","R4400"
"Wolverhampton City Council","http://opendatacommunities.org/id/metropolitan-district-council/wolverhampton","705534","Midlands Truck & Van Limited","88429240","142.48","Equipment - Purchase","190432506","07/03/2018","Fleet Services","Fleet Management","R4000"
"Wolverhampton City Council","http://opendatacommunities.org/id/metropolitan-district-council/wolverhampton","705534","Midlands Truck & Van Limited","88430519","23.22","Equipment - Purchase","190439618","23/03/2018","Fleet Services","Fleet Management","R4000"
"Wolverhampton City Council","http://opendatacommunities.org/id/metropolitan-district-council/wolverhampton","705534","Midlands Truck & Van Limited","88430519","12.96","Equipment - Purchase","190439618","23/03/2018","Fleet Services","Fleet Management","R4000"
"Wolverhampton City Council","http://opendatacommunities.org/id/metropolitan-district-council/wolverhampton","705534","Midlands Truck & Van Limited","88430070","0.27","Equipment - Purchase","190439617","23/03/2018","Fleet Services","Fleet Management","R4000"
"Wolverhampton City Council","http://opendatacommunities.org/id/metropolitan-district-council/wolverhampton","705534","Midlands Truck & Van Limited","88430070","12.96","Equipment - Purchase","190439617","23/03/2018","Fleet Services","Fleet Management","R4000"
"Wolverhampton City Council","http://opendatacommunities.org/id/metropolitan-district-council/wolverhampton","705534","Midlands Truck & Van Limited","88430070","5.40","Equipment - Purchase","190439617","23/03/2018","Fleet Services","Fleet Management","R4000"
"Wolverhampton City Council","http://opendatacommunities.org/id/metropolitan-district-council/wolverhampton","705534","Midlands Truck & Van Limited","88430070","2.25","Equipment - Purchase","190439617","23/03/2018","Fleet Services","Fleet Management","R4000"
"Wolverhampton City Council","http://opendatacommunities.org/id/metropolitan-district-council/wolverhampton","705534","Midlands Truck & Van Limited","88430070","13.68","Equipment - Purchase","190439617","23/03/2018","Fleet Services","Fleet Management","R4000"
"Wolverhampton City Council","http://opendatacommunities.org/id/metropolitan-district-council/wolverhampton","705534","Midlands Truck & Van Limited","88430070","8.73","Equipment - Purchase","190439617","23/03/2018","Fleet Services","Fleet Management","R4000"
"Wolverhampton City Council","http://opendatacommunities.org/id/metropolitan-district-council/wolverhampton","705534","Midlands Truck & Van Limited","88430070","9.72","Equipment - Purchase","190439617","23/03/2018","Fleet Services","Fleet Management","R4000"
"Wolverhampton City Council","http://opendatacommunities.org/id/metropolitan-district-council/wolverhampton","705534","Midlands Truck & Van Limited","8840941","-20.79","Equipment - Purchase","190437013","21/03/2018","Fleet Services","Fleet Management","R4000"
"Wolverhampton City Council","http://opendatacommunities.org/id/metropolitan-district-council/wolverhampton","705534","Midlands Truck & Van Limited","83604892","219.00","Services - Professional Fees","190435298","14/03/2018","Fleet Services","Fleet Management","R4400"
"Wolverhampton City Council","http://opendatacommunities.org/id/metropolitan-district-council/wolverhampton","705534","Midlands Truck & Van Limited","83604892","2.35","Services - Professional Fees","190435298","14/03/2018","Fleet Services","Fleet Management","R4400"
"Wolverhampton City Council","http://opendatacommunities.org/id/metropolitan-district-council/wolverhampton","705534","Midlands Truck & Van Limited","83604892","21.00","Services - Professional Fees","190435298","14/03/2018","Fleet Services","Fleet Management","R4400"
"Wolverhampton City Council","http://opendatacommunities.org/id/metropolitan-district-council/wolverhampton","705534","Midlands Truck & Van Limited","83604892","52.50","Services - Professional Fees","190435298","14/03/2018","Fleet Services","Fleet Management","R4400"
"Wolverhampton City Council","http://opendatacommunities.org/id/metropolitan-district-council/wolverhampton","705534","Midlands Truck & Van Limited","83604892","65.50","Services - Professional Fees","190435298","14/03/2018","Fleet Services","Fleet Management","R4400"
"Wolverhampton City Council","http://opendatacommunities.org/id/metropolitan-district-council/wolverhampton","705534","Midlands Truck & Van Limited","83604892","126.00","Services - Professional Fees","190435298","14/03/2018","Fleet Services","Fleet Management","R4400"
"Wolverhampton City Council","http://opendatacommunities.org/id/metropolitan-district-council/wolverhampton","705534","Midlands Truck & Van Limited","83604892","31.50","Services - Professional Fees","190435298","14/03/2018","Fleet Services","Fleet Management","R4400"
"Wolverhampton City Council","http://opendatacommunities.org/id/metropolitan-district-council/wolverhampton","705534","Midlands Truck & Van Limited","83604892","42.50","Services - Professional Fees","190435298","14/03/2018","Fleet Services","Fleet Management","R4400"
"Wolverhampton City Council","http://opendatacommunities.org/id/metropolitan-district-council/wolverhampton","705534","Midlands Truck & Van Limited","83604892","4.00","Services - Professional Fees","190435298","14/03/2018","Fleet Services","Fleet Management","R4400"
"Wolverhampton City Council","http://opendatacommunities.org/id/metropolitan-district-council/wolverhampton","705534","Midlands Truck & Van Limited","83604892","210.00","Services - Professional Fees","190435298","14/03/2018","Fleet Services","Fleet Management","R4400"
"Wolverhampton City Council","http://opendatacommunities.org/id/metropolitan-district-council/wolverhampton","705534","Midlands Truck & Van Limited","88429292","3.10","Equipment - Purchase","190437014","21/03/2018","Fleet Services","Fleet Management","R4000"
"Wolverhampton City Council","http://opendatacommunities.org/id/metropolitan-district-council/wolverhampton","705534","Midlands Truck & Van Limited","88429292","20.79","Equipment - Purchase","190437014","21/03/2018","Fleet Services","Fleet Management","R4000"
"Wolverhampton City Council","http://opendatacommunities.org/id/metropolitan-district-council/wolverhampton","705534","Midlands Truck & Van Limited","88429629","219.45","Equipment - Purchase","190435301","14/03/2018","Fleet Services","Fleet Management","R4000"
"Wolverhampton City Council","http://opendatacommunities.org/id/metropolitan-district-council/wolverhampton","705534","Midlands Truck & Van Limited","88429629","5.49","Equipment - Purchase","190435301","14/03/2018","Fleet Services","Fleet Management","R4000"
"Wolverhampton City Council","http://opendatacommunities.org/id/metropolitan-district-council/wolverhampton","705534","Midlands Truck & Van Limited","88429629","91.80","Equipment - Purchase","190435301","14/03/2018","Fleet Services","Fleet Management","R4000"
"Wolverhampton City Council","http://opendatacommunities.org/id/metropolitan-district-council/wolverhampton","705534","Midlands Truck & Van Limited","83604930","130.00","Services - Professional Fees","190435300","14/03/2018","Fleet Services","Fleet Management","R4400"
"Wolverhampton City Council","http://opendatacommunities.org/id/metropolitan-district-council/wolverhampton","705534","Midlands Truck & Van Limited","83604930","2.00","Services - Professional Fees","190435300","14/03/2018","Fleet Services","Fleet Management","R4400"
"Wolverhampton City Council","http://opendatacommunities.org/id/metropolitan-district-council/wolverhampton","705534","Midlands Truck & Van Limited","83604930","10.50","Services - Professional Fees","190435300","14/03/2018","Fleet Services","Fleet Management","R4400"
"Wolverhampton City Council","http://opendatacommunities.org/id/metropolitan-district-council/wolverhampton","705534","Midlands Truck & Van Limited","83604930","42.50","Services - Professional Fees","190435300","14/03/2018","Fleet Services","Fleet Management","R4400"
"Wolverhampton City Council","http://opendatacommunities.org/id/metropolitan-district-council/wolverhampton","705542","Midwest Electrical Services Limited","I15532","4,526.40","R&M - Departmental planned (external)","130206943","21/03/2018","Maintenance Programme","Centralised R&M","R2001"
"Wolverhampton City Council","http://opendatacommunities.org/id/metropolitan-district-council/wolverhampton","705542","Midwest Electrical Services Limited","I15450","47.78","R&M - Departmental planned (external)","130210266","21/03/2018","Facilities Management","i10 Facilities Management","R2001"
"Wolverhampton City Council","http://opendatacommunities.org/id/metropolitan-district-council/wolverhampton","705542","Midwest Electrical Services Limited","I15463","37.41","R&M - Departmental planned (external)","130206663","14/03/2018","Facilities Management","Magistrates","R2001"
"Wolverhampton City Council","http://opendatacommunities.org/id/metropolitan-district-council/wolverhampton","705542","Midwest Electrical Services Limited","I15468","25.20","R&M - Departmental planned (external)","130206668","14/03/2018","Adult Education","Foyer Building","R2001"
"Wolverhampton City Council","http://opendatacommunities.org/id/metropolitan-district-council/wolverhampton","705542","Midwest Electrical Services Limited","I14725","3,625.00","R&M - Departmental planned (external)","130197589","14/03/2018","Maintenance Programme","Centralised R&M","R2001"
"Wolverhampton City Council","http://opendatacommunities.org/id/metropolitan-district-council/wolverhampton","705542","Midwest Electrical Services Limited","I15471","352.64","R&M - Departmental planned (external)","130206671","14/03/2018","Maintenance Programme","Centralised R&M","R2001"
"Wolverhampton City Council","http://opendatacommunities.org/id/metropolitan-district-council/wolverhampton","705542","Midwest Electrical Services Limited","I15469","23.29","R&M - Departmental planned (external)","130206669","14/03/2018","Markets","Wolverhampton Indoor and Open Market","R2001"
"Wolverhampton City Council","http://opendatacommunities.org/id/metropolitan-district-council/wolverhampton","705542","Midwest Electrical Services Limited","I13696","137.93","R&M - Departmental planned (external)","130208813","14/03/2018","Maintenance Programme","Centralised R&M","R2001"
"Wolverhampton City Council","http://opendatacommunities.org/id/metropolitan-district-council/wolverhampton","705542","Midwest Electrical Services Limited","I14570","186.41","R&M - Departmental planned (external)","130207511","14/03/2018","Facilities Management","Culwell Street Depot","R2001"
"Wolverhampton City Council","http://opendatacommunities.org/id/metropolitan-district-council/wolverhampton","705542","Midwest Electrical Services Limited","I15487","606.38","R&M - Departmental planned (external)","130206804","16/03/2018","Maintenance Programme","Centralised R&M","R2001"
"Wolverhampton City Council","http://opendatacommunities.org/id/metropolitan-district-council/wolverhampton","705542","Midwest Electrical Services Limited","I15488","80.80","R&M - Departmental planned (external)","130206805","16/03/2018","Facilities Management","Caretakers Community Centre","R2001"
"Wolverhampton City Council","http://opendatacommunities.org/id/metropolitan-district-council/wolverhampton","705542","Midwest Electrical Services Limited","I15717","525.00","R&M - Departmental planned (external)","130208816","26/03/2018","Facilities Management","Magistrates","R2001"
"Wolverhampton City Council","http://opendatacommunities.org/id/metropolitan-district-council/wolverhampton","705542","Midwest Electrical Services Limited","I15666","23.38","R&M - Departmental planned (external)","130208029","26/03/2018","Maintenance Programme","Centralised R&M","R2001"
"Wolverhampton City Council","http://opendatacommunities.org/id/metropolitan-district-council/wolverhampton","705542","Midwest Electrical Services Limited","I15743","23.38","R&M - Departmental planned (external)","130209404","26/03/2018","Maintenance Programme","Centralised R&M","R2001"
"Wolverhampton City Council","http://opendatacommunities.org/id/metropolitan-district-council/wolverhampton","705542","Midwest Electrical Services Limited","I15711","87.61","R&M - Departmental planned (external)","130208814","26/03/2018","Facilities Management","Magistrates","R2001"
"Wolverhampton City Council","http://opendatacommunities.org/id/metropolitan-district-council/wolverhampton","705542","Midwest Electrical Services Limited","I15741","26.32","R&M - Departmental planned (external)","130209402","26/03/2018","Estates and Valuations","Industrial Premises ; Fordhouse Road","R2001"
"Wolverhampton City Council","http://opendatacommunities.org/id/metropolitan-district-council/wolverhampton","705542","Midwest Electrical Services Limited","I14695","730.80","R&M - Departmental planned (external)","130197428","07/03/2018","Estates and Valuations","Industrial Premises ; Fordhouse Road","R2001"
"Wolverhampton City Council","http://opendatacommunities.org/id/metropolitan-district-council/wolverhampton","705542","Midwest Electrical Services Limited","I14624","3,553.96","R&M - Departmental planned (external)","130196759","07/03/2018","Corporate Asset Management","Centralised Planned Maintenance","R2001"
"Wolverhampton City Council","http://opendatacommunities.org/id/metropolitan-district-council/wolverhampton","705542","Midwest Electrical Services Limited","I14404","800.75","R&M - Departmental planned (external)","130194491","07/03/2018","Maintenance Programme","Centralised R&M","R2001"
"Wolverhampton City Council","http://opendatacommunities.org/id/metropolitan-district-council/wolverhampton","705542","Midwest Electrical Services Limited","257","-1,500.00","Construction and Conversion","130210615","26/03/2018","-","Corporate Asset Management","C1100"
"Wolverhampton City Council","http://opendatacommunities.org/id/metropolitan-district-council/wolverhampton","705542","Midwest Electrical Services Limited","I15632","37.67","R&M - Departmental planned (external)","130207821","26/03/2018","Facilities Management","Magistrates","R2001"
"Wolverhampton City Council","http://opendatacommunities.org/id/metropolitan-district-council/wolverhampton","705542","Midwest Electrical Services Limited","I15697","3,042.00","R&M - Departmental planned (external)","130208500","26/03/2018","Maintenance Programme","Centralised R&M","R2001"
"Wolverhampton City Council","http://opendatacommunities.org/id/metropolitan-district-council/wolverhampton","705542","Midwest Electrical Services Limited","I15626","70.46","R&M - Departmental planned (external)","130207818","26/03/2018","Facilities Management","Magistrates","R2001"
"Wolverhampton City Council","http://opendatacommunities.org/id/metropolitan-district-council/wolverhampton","705542","Midwest Electrical Services Limited","I15630","54.73","R&M - Departmental planned (external)","130208192","26/03/2018","Facilities Management","Magistrates","R2001"
"Wolverhampton City Council","http://opendatacommunities.org/id/metropolitan-district-council/wolverhampton","705542","Midwest Electrical Services Limited","I15622","357.68","R&M - Departmental planned (external)","130208191","26/03/2018","Maintenance Programme","Centralised R&M","R2001"
"Wolverhampton City Council","http://opendatacommunities.org/id/metropolitan-district-council/wolverhampton","705542","Midwest Electrical Services Limited","I14406","85.76","R&M - Departmental planned (external)","130207509","07/03/2018","Maintenance Programme","Centralised R&M","R2001"
"Wolverhampton City Council","http://opendatacommunities.org/id/metropolitan-district-council/wolverhampton","705542","Midwest Electrical Services Limited","I13820","5,095.00","R&M - Departmental planned (external)","130195551","07/03/2018","Corporate Asset Management","Strategic Asset Management Team","R2001"
"Wolverhampton City Council","http://opendatacommunities.org/id/metropolitan-district-council/wolverhampton","705542","Midwest Electrical Services Limited","I13697","30.70","R&M - Departmental planned (external)","130207506","02/03/2018","Maintenance Programme","Centralised R&M","R2001"
"Wolverhampton City Council","http://opendatacommunities.org/id/metropolitan-district-council/wolverhampton","705542","Midwest Electrical Services Limited","I13692","63.82","R&M - Departmental planned (external)","130207672","02/03/2018","Facilities Management","Magistrates","R2001"
"Wolverhampton City Council","http://opendatacommunities.org/id/metropolitan-district-council/wolverhampton","705542","Midwest Electrical Services Limited","I15536","103.81","R&M - Departmental planned (external)","130207098","21/03/2018","Maintenance Programme","Centralised R&M","R2001"
"Wolverhampton City Council","http://opendatacommunities.org/id/metropolitan-district-council/wolverhampton","705542","Midwest Electrical Services Limited","I15576","2,368.20","R&M - Departmental planned (external)","130207410","21/03/2018","Maintenance Programme","Centralised R&M","R2001"
"Wolverhampton City Council","http://opendatacommunities.org/id/metropolitan-district-council/wolverhampton","705542","Midwest Electrical Services Limited","I15470","26.23","R&M - Departmental planned (external)","130206670","14/03/2018","Maintenance Programme","Centralised R&M","R2001"
"Wolverhampton City Council","http://opendatacommunities.org/id/metropolitan-district-council/wolverhampton","705542","Midwest Electrical Services Limited","I15482","112.19","R&M - Departmental planned (external)","130206800","14/03/2018","Facilities Management","Caretakers Community Centre","R2001"
"Wolverhampton City Council","http://opendatacommunities.org/id/metropolitan-district-council/wolverhampton","705542","Midwest Electrical Services Limited","I15462","23.29","R&M - Departmental planned (external)","130206495","14/03/2018","Maintenance Programme","Centralised R&M","R2001"
"Wolverhampton City Council","http://opendatacommunities.org/id/metropolitan-district-council/wolverhampton","705542","Midwest Electrical Services Limited","I15478","140.38","R&M - Departmental planned (external)","130206678","14/03/2018","Maintenance Programme","Centralised R&M","R2001"
"Wolverhampton City Council","http://opendatacommunities.org/id/metropolitan-district-council/wolverhampton","705542","Midwest Electrical Services Limited","I15475","220.15","R&M - Departmental planned (external)","130206675","14/03/2018","Maintenance Programme","Centralised R&M","R2001"
"Wolverhampton City Council","http://opendatacommunities.org/id/metropolitan-district-council/wolverhampton","705542","Midwest Electrical Services Limited","I15465","167.01","R&M - Departmental planned (external)","130206665","14/03/2018","Maintenance Programme","Centralised R&M","R2001"
"Wolverhampton City Council","http://opendatacommunities.org/id/metropolitan-district-council/wolverhampton","705542","Midwest Electrical Services Limited","I15461","14,984.63","Construction and Conversion","130206662","14/03/2018","-","Capital Maintenance - Structural Works","C1100"
"Wolverhampton City Council","http://opendatacommunities.org/id/metropolitan-district-council/wolverhampton","705542","Midwest Electrical Services Limited","I15489","116.14","R&M - Departmental planned (external)","130206806","16/03/2018","Maintenance Programme","Centralised R&M","R2001"
"Wolverhampton City Council","http://opendatacommunities.org/id/metropolitan-district-council/wolverhampton","705542","Midwest Electrical Services Limited","I15279","10,092.00","Construction and Conversion","130204195","07/03/2018","-","Corporate Asset Management","C1100"
"Wolverhampton City Council","http://opendatacommunities.org/id/metropolitan-district-council/wolverhampton","705542","Midwest Electrical Services Limited","I14896","5,969.00","Construction and Conversion","130199784","07/03/2018","-","Corporate Asset Management","C1100"
"Wolverhampton City Council","http://opendatacommunities.org/id/metropolitan-district-council/wolverhampton","705542","Midwest Electrical Services Limited","I13448","122.86","R&M - Departmental planned (external)","130185566","07/03/2018","Corporate Asset Management","Centralised Planned Maintenance","R2001"
"Wolverhampton City Council","http://opendatacommunities.org/id/metropolitan-district-council/wolverhampton","705542","Midwest Electrical Services Limited","I14696","1,106.17","R&M - Departmental planned (external)","130197429","07/03/2018","Facilities Management","Hickman Avenue Depot","R2001"
"Wolverhampton City Council","http://opendatacommunities.org/id/metropolitan-district-council/wolverhampton","705542","Midwest Electrical Services Limited","I14790","1,033.00","R&M - Departmental planned (external)","130198395","07/03/2018","Facilities Management","i10 Facilities Management","R2001"
"Wolverhampton City Council","http://opendatacommunities.org/id/metropolitan-district-council/wolverhampton","705542","Midwest Electrical Services Limited","I15710","26.32","R&M - Departmental planned (external)","130208653","26/03/2018","Maintenance Programme","Centralised R&M","R2001"
"Wolverhampton City Council","http://opendatacommunities.org/id/metropolitan-district-council/wolverhampton","705542","Midwest Electrical Services Limited","I15707","337.27","R&M - Departmental planned (external)","130208504","26/03/2018","Maintenance Programme","Centralised R&M","R2001"
"Wolverhampton City Council","http://opendatacommunities.org/id/metropolitan-district-council/wolverhampton","705542","Midwest Electrical Services Limited","I15718","92.54","R&M - Departmental planned (external)","130208817","26/03/2018","Schools","Pupil Referral Units - Braybrook Centre","R2001"
"Wolverhampton City Council","http://opendatacommunities.org/id/metropolitan-district-council/wolverhampton","705542","Midwest Electrical Services Limited","I15720","755.00","R&M - Departmental planned (external)","130209017","26/03/2018","Skills","Connexions Contract","R2001"
"Wolverhampton City Council","http://opendatacommunities.org/id/metropolitan-district-council/wolverhampton","705542","Midwest Electrical Services Limited","219","-13,926.97","R&M - Departmental planned (external)","130210265","26/03/2018","Adult Education","Foyer Building","R2001"
"Wolverhampton City Council","http://opendatacommunities.org/id/metropolitan-district-council/wolverhampton","705542","Midwest Electrical Services Limited","I15721","23.38","R&M - Departmental planned (external)","130209018","26/03/2018","Facilities Management","Magistrates","R2001"
"Wolverhampton City Council","http://opendatacommunities.org/id/metropolitan-district-council/wolverhampton","705542","Midwest Electrical Services Limited","I15619","23.38","R&M - Departmental planned (external)","130207817","26/03/2018","Maintenance Programme","Centralised R&M","R2001"
"Wolverhampton City Council","http://opendatacommunities.org/id/metropolitan-district-council/wolverhampton","705542","Midwest Electrical Services Limited","I15661","23.38","R&M - Departmental planned (external)","130208027","26/03/2018","Maintenance Programme","Centralised R&M","R2001"
"Wolverhampton City Council","http://opendatacommunities.org/id/metropolitan-district-council/wolverhampton","705542","Midwest Electrical Services Limited","I15629","73.97","R&M - Departmental planned (external)","130207820","26/03/2018","Facilities Management","Magistrates","R2001"
"Wolverhampton City Council","http://opendatacommunities.org/id/metropolitan-district-council/wolverhampton","705542","Midwest Electrical Services Limited","I15631","51.63","R&M - Departmental planned (external)","130208369","26/03/2018","Facilities Management","Magistrates","R2001"
"Wolverhampton City Council","http://opendatacommunities.org/id/metropolitan-district-council/wolverhampton","705542","Midwest Electrical Services Limited","I15668","61.05","R&M - Departmental planned (external)","130208194","26/03/2018","Maintenance Programme","Centralised R&M","R2001"
"Wolverhampton City Council","http://opendatacommunities.org/id/metropolitan-district-council/wolverhampton","705542","Midwest Electrical Services Limited","I15607","4,435.00","R&M - Departmental planned (external)","130207812","26/03/2018","Corporate Asset Management","Centralised Planned Maintenance","R2001"
"Wolverhampton City Council","http://opendatacommunities.org/id/metropolitan-district-council/wolverhampton","705542","Midwest Electrical Services Limited","I14520","23.89","R&M - Departmental planned (external)","130207510","07/03/2018","Maintenance Programme","Centralised R&M","R2001"
"Wolverhampton City Council","http://opendatacommunities.org/id/metropolitan-district-council/wolverhampton","705542","Midwest Electrical Services Limited","I09103","245.01","R&M - Departmental planned (external)","130205836","09/03/2018","Corporate Business Support","Corporate Programmes","R2001"
"Wolverhampton City Council","http://opendatacommunities.org/id/metropolitan-district-council/wolverhampton","705542","Midwest Electrical Services Limited","I13694","110.63","R&M - Departmental planned (external)","130207504","02/03/2018","Maintenance Programme","Centralised R&M","R2001"
"Wolverhampton City Council","http://opendatacommunities.org/id/metropolitan-district-council/wolverhampton","705542","Midwest Electrical Services Limited","I13575","41.53","R&M - Departmental planned (external)","130207503","02/03/2018","Facilities Management","Magistrates","R2001"
"Wolverhampton City Council","http://opendatacommunities.org/id/metropolitan-district-council/wolverhampton","705542","Midwest Electrical Services Limited","I11247","72.92","R&M - Departmental planned (external)","130207671","02/03/2018","Facilities Management","Old Town Hall (Others)","R2001"
"Wolverhampton City Council","http://opendatacommunities.org/id/metropolitan-district-council/wolverhampton","705542","Midwest Electrical Services Limited","I15567","3,140.00","Construction and Conversion","130207250","21/03/2018","-","Corporate Asset Management","C1100"
"Wolverhampton City Council","http://opendatacommunities.org/id/metropolitan-district-council/wolverhampton","705542","Midwest Electrical Services Limited","I15509","6,942.06","Construction and Conversion","130206941","21/03/2018","-","Electrical Works","C1100"
"Wolverhampton City Council","http://opendatacommunities.org/id/metropolitan-district-council/wolverhampton","705542","Midwest Electrical Services Limited","I15578","280.56","R&M - Departmental planned (external)","130207412","21/03/2018","Maintenance Programme","Centralised R&M","R2001"
"Wolverhampton City Council","http://opendatacommunities.org/id/metropolitan-district-council/wolverhampton","705542","Midwest Electrical Services Limited","I15481","107.04","R&M - Departmental planned (external)","130206681","14/03/2018","Maintenance Programme","Centralised R&M","R2001"
"Wolverhampton City Council","http://opendatacommunities.org/id/metropolitan-district-council/wolverhampton","705542","Midwest Electrical Services Limited","I15472","80.58","R&M - Departmental planned (external)","130206672","14/03/2018","Cleaning","Public Conveniences","R2001"
"Wolverhampton City Council","http://opendatacommunities.org/id/metropolitan-district-council/wolverhampton","705542","Midwest Electrical Services Limited","I15473","225.80","R&M - Departmental planned (external)","130206673","14/03/2018","Maintenance Programme","Centralised R&M","R2001"
"Wolverhampton City Council","http://opendatacommunities.org/id/metropolitan-district-council/wolverhampton","705542","Midwest Electrical Services Limited","I15479","23.38","R&M - Departmental planned (external)","130206679","14/03/2018","Maintenance Programme","Centralised R&M","R2001"
"Wolverhampton City Council","http://opendatacommunities.org/id/metropolitan-district-council/wolverhampton","705542","Midwest Electrical Services Limited","I15467","369.97","R&M - Departmental planned (external)","130206667","14/03/2018","Maintenance Programme","Centralised R&M","R2001"
"Wolverhampton City Council","http://opendatacommunities.org/id/metropolitan-district-council/wolverhampton","705542","Midwest Electrical Services Limited","I15464","27.20","R&M - Departmental planned (external)","130206664","14/03/2018","Bereavement Services","Cemeteries","R2001"
"Wolverhampton City Council","http://opendatacommunities.org/id/metropolitan-district-council/wolverhampton","705542","Midwest Electrical Services Limited","I12668","175.62","R&M - Departmental planned (external)","130177851","14/03/2018","Maintenance Programme","Centralised R&M","R2001"
"Wolverhampton City Council","http://opendatacommunities.org/id/metropolitan-district-council/wolverhampton","705542","Midwest Electrical Services Limited","I15485","152.95","R&M - Departmental planned (external)","130206802","16/03/2018","Estates and Valuations","Offices ; Salop Street","R2001"
"Wolverhampton City Council","http://opendatacommunities.org/id/metropolitan-district-council/wolverhampton","705542","Midwest Electrical Services Limited","I15486","375.42","R&M - Departmental planned (external)","130206803","16/03/2018","Maintenance Programme","Centralised R&M","R2001"
"Wolverhampton City Council","http://opendatacommunities.org/id/metropolitan-district-council/wolverhampton","705542","Midwest Electrical Services Limited","I15226","310.50","R&M - Departmental planned (external)","130207514","02/03/2018","Maintenance Programme","Centralised R&M","R2001"
"Wolverhampton City Council","http://opendatacommunities.org/id/metropolitan-district-council/wolverhampton","705542","Midwest Electrical Services Limited","I14876","42.88","R&M - Departmental planned (external)","130207513","02/03/2018","Facilities Management","Magistrates","R2001"
"Wolverhampton City Council","http://opendatacommunities.org/id/metropolitan-district-council/wolverhampton","705542","Midwest Electrical Services Limited","I15742","37.67","R&M - Departmental planned (external)","130209403","26/03/2018","Maintenance Programme","Centralised R&M","R2001"
"Wolverhampton City Council","http://opendatacommunities.org/id/metropolitan-district-council/wolverhampton","705542","Midwest Electrical Services Limited","I12667","260.53","R&M - Departmental planned (external)","130177850","07/03/2018","Maintenance Programme","Centralised R&M","R2001"
"Wolverhampton City Council","http://opendatacommunities.org/id/metropolitan-district-council/wolverhampton","705542","Midwest Electrical Services Limited","I14443","2,949.50","R&M - Departmental planned (external)","130194642","07/03/2018","Maintenance Programme","Centralised R&M","R2001"
"Wolverhampton City Council","http://opendatacommunities.org/id/metropolitan-district-council/wolverhampton","705542","Midwest Electrical Services Limited","I15723","796.80","R&M - Departmental planned (external)","130209020","26/03/2018","Maintenance Programme","Centralised R&M","R2001"
"Wolverhampton City Council","http://opendatacommunities.org/id/metropolitan-district-council/wolverhampton","705542","Midwest Electrical Services Limited","I15701","109.33","R&M - Departmental planned (external)","130208503","26/03/2018","Maintenance Programme","Centralised R&M","R2001"
"Wolverhampton City Council","http://opendatacommunities.org/id/metropolitan-district-council/wolverhampton","705542","Midwest Electrical Services Limited","I15702","108.95","R&M - Departmental planned (external)","130208650","26/03/2018","Maintenance Programme","Centralised R&M","R2001"
"Wolverhampton City Council","http://opendatacommunities.org/id/metropolitan-district-council/wolverhampton","705542","Midwest Electrical Services Limited","I15696","64.76","R&M - Departmental planned (external)","130208499","26/03/2018","Maintenance Programme","Centralised R&M","R2001"
"Wolverhampton City Council","http://opendatacommunities.org/id/metropolitan-district-council/wolverhampton","705542","Midwest Electrical Services Limited","I15729","26.47","R&M - Departmental planned (external)","130209198","26/03/2018","Maintenance Programme","Centralised R&M","R2001"
"Wolverhampton City Council","http://opendatacommunities.org/id/metropolitan-district-council/wolverhampton","705542","Midwest Electrical Services Limited","I15605","23.38","R&M - Departmental planned (external)","130207674","26/03/2018","Maintenance Programme","Centralised R&M","R2001"
"Wolverhampton City Council","http://opendatacommunities.org/id/metropolitan-district-council/wolverhampton","705542","Midwest Electrical Services Limited","I15618","174.81","R&M - Departmental planned (external)","130207816","26/03/2018","Maintenance Programme","Centralised R&M","R2001"
"Wolverhampton City Council","http://opendatacommunities.org/id/metropolitan-district-council/wolverhampton","705542","Midwest Electrical Services Limited","I15660","40.92","R&M - Departmental planned (external)","130208026","26/03/2018","Maintenance Programme","Centralised R&M","R2001"
"Wolverhampton City Council","http://opendatacommunities.org/id/metropolitan-district-council/wolverhampton","705542","Midwest Electrical Services Limited","I15628","93.80","R&M - Departmental planned (external)","130207819","26/03/2018","Facilities Management","Caretakers Community Centre","R2001"
"Wolverhampton City Council","http://opendatacommunities.org/id/metropolitan-district-council/wolverhampton","705542","Midwest Electrical Services Limited","I15665","77.46","R&M - Departmental planned (external)","130208028","26/03/2018","Facilities Management","Culwell Street Depot","R2001"
"Wolverhampton City Council","http://opendatacommunities.org/id/metropolitan-district-council/wolverhampton","705542","Midwest Electrical Services Limited","I15669","53.66","R&M - Departmental planned (external)","130208030","26/03/2018","Facilities Management","Magistrates","R2001"
"Wolverhampton City Council","http://opendatacommunities.org/id/metropolitan-district-council/wolverhampton","705542","Midwest Electrical Services Limited","I15709","23.38","R&M - Departmental planned (external)","130208652","26/03/2018","Markets","Bilston Market and Licensed Operations","R2001"
"Wolverhampton City Council","http://opendatacommunities.org/id/metropolitan-district-council/wolverhampton","705542","Midwest Electrical Services Limited","I14726","1,065.00","R&M - Departmental planned (external)","130197590","07/03/2018","Bereavement Services","Cemeteries","R2001"
"Wolverhampton City Council","http://opendatacommunities.org/id/metropolitan-district-council/wolverhampton","705542","Midwest Electrical Services Limited","I15088","13,591.50","Construction and Conversion","130201738","07/03/2018","-","Corporate Asset Management","C1100"
"Wolverhampton City Council","http://opendatacommunities.org/id/metropolitan-district-council/wolverhampton","705542","Midwest Electrical Services Limited","I12939","25.69","R&M - Departmental planned (external)","130207502","07/03/2018","Maintenance Programme","Centralised R&M","R2001"
"Wolverhampton City Council","http://opendatacommunities.org/id/metropolitan-district-council/wolverhampton","705542","Midwest Electrical Services Limited","I14569","498.42","R&M - Departmental planned (external)","130196268","07/03/2018","Maintenance Programme","Centralised R&M","R2001"
"Wolverhampton City Council","http://opendatacommunities.org/id/metropolitan-district-council/wolverhampton","705542","Midwest Electrical Services Limited","I11405","640.00","Construction and Conversion","130208649","09/03/2018","-","Corporate Asset Management","C1100"
"Wolverhampton City Council","http://opendatacommunities.org/id/metropolitan-district-council/wolverhampton","705542","Midwest Electrical Services Limited","I14731","3,165.86","R&M - Departmental planned (external)","130197595","07/03/2018","Maintenance Programme","Centralised R&M","R2001"
"Wolverhampton City Council","http://opendatacommunities.org/id/metropolitan-district-council/wolverhampton","705542","Midwest Electrical Services Limited","I14572","94.43","R&M - Departmental planned (external)","130207512","07/03/2018","Maintenance Programme","Centralised R&M","R2001"
"Wolverhampton City Council","http://opendatacommunities.org/id/metropolitan-district-council/wolverhampton","705542","Midwest Electrical Services Limited","I15700","41.65","R&M - Departmental planned (external)","130208502","26/03/2018","Maintenance Programme","Centralised R&M","R2001"
"Wolverhampton City Council","http://opendatacommunities.org/id/metropolitan-district-council/wolverhampton","705542","Midwest Electrical Services Limited","I15604","23.38","R&M - Departmental planned (external)","130207673","26/03/2018","Schools","Bushbury Hill Primary School","R2001"
"Wolverhampton City Council","http://opendatacommunities.org/id/metropolitan-district-council/wolverhampton","705542","Midwest Electrical Services Limited","I15608","56.11","R&M - Departmental planned (external)","130207813","26/03/2018","Maintenance Programme","Centralised R&M","R2001"
"Wolverhampton City Council","http://opendatacommunities.org/id/metropolitan-district-council/wolverhampton","705542","Midwest Electrical Services Limited","I15609","267.88","R&M - Departmental planned (external)","130207814","26/03/2018","Maintenance Programme","Centralised R&M","R2001"
"Wolverhampton City Council","http://opendatacommunities.org/id/metropolitan-district-council/wolverhampton","705542","Midwest Electrical Services Limited","I15633","54.62","R&M - Departmental planned (external)","130208370","26/03/2018","Markets","Bilston Market and Licensed Operations","R2001"
"Wolverhampton City Council","http://opendatacommunities.org/id/metropolitan-district-council/wolverhampton","705542","Midwest Electrical Services Limited","I15698","2,210.00","R&M - Departmental planned (external)","130208501","26/03/2018","Maintenance Programme","Civic Centre Repairs & Maintenance","R2001"
"Wolverhampton City Council","http://opendatacommunities.org/id/metropolitan-district-council/wolverhampton","705542","Midwest Electrical Services Limited","I14432","720.00","R&M - Departmental planned (external)","130194634","07/03/2018","Maintenance Programme","Centralised R&M","R2001"
"Wolverhampton City Council","http://opendatacommunities.org/id/metropolitan-district-council/wolverhampton","705542","Midwest Electrical Services Limited","I14441","2,620.00","R&M - Departmental planned (external)","130194640","07/03/2018","Maintenance Programme","Centralised R&M","R2001"
"Wolverhampton City Council","http://opendatacommunities.org/id/metropolitan-district-council/wolverhampton","705542","Midwest Electrical Services Limited","I14643","766.53","R&M - Departmental planned (external)","130196762","07/03/2018","Maintenance Programme","Centralised R&M","R2001"
"Wolverhampton City Council","http://opendatacommunities.org/id/metropolitan-district-council/wolverhampton","705542","Midwest Electrical Services Limited","I15716","37.67","R&M - Departmental planned (external)","130208815","26/03/2018","Maintenance Programme","Centralised R&M","R2001"
"Wolverhampton City Council","http://opendatacommunities.org/id/metropolitan-district-council/wolverhampton","705542","Midwest Electrical Services Limited","I15667","23.38","R&M - Departmental planned (external)","130208193","26/03/2018","Maintenance Programme","Centralised R&M","R2001"
"Wolverhampton City Council","http://opendatacommunities.org/id/metropolitan-district-council/wolverhampton","705542","Midwest Electrical Services Limited","I15615","78.86","R&M - Departmental planned (external)","130207815","26/03/2018","Facilities Management","Parkfields Office Accomodation","R2001"
"Wolverhampton City Council","http://opendatacommunities.org/id/metropolitan-district-council/wolverhampton","705542","Midwest Electrical Services Limited","I15708","430.00","R&M - Departmental planned (external)","130208651","26/03/2018","Maintenance Programme","Centralised R&M","R2001"
"Wolverhampton City Council","http://opendatacommunities.org/id/metropolitan-district-council/wolverhampton","705542","Midwest Electrical Services Limited","I15722","102.57","R&M - Departmental planned (external)","130209019","26/03/2018","Facilities Management","Magistrates","R2001"
"Wolverhampton City Council","http://opendatacommunities.org/id/metropolitan-district-council/wolverhampton","705542","Midwest Electrical Services Limited","I13695","61.23","R&M - Departmental planned (external)","130207505","02/03/2018","Maintenance Programme","Centralised R&M","R2001"
"Wolverhampton City Council","http://opendatacommunities.org/id/metropolitan-district-council/wolverhampton","705542","Midwest Electrical Services Limited","I14225","328.62","R&M - Departmental planned (external)","130207508","02/03/2018","Maintenance Programme","Centralised R&M","R2001"
"Wolverhampton City Council","http://opendatacommunities.org/id/metropolitan-district-council/wolverhampton","705542","Midwest Electrical Services Limited","I15510","637.55","R&M - Departmental planned (external)","130206942","21/03/2018","Maintenance Programme","Centralised R&M","R2001"
"Wolverhampton City Council","http://opendatacommunities.org/id/metropolitan-district-council/wolverhampton","705542","Midwest Electrical Services Limited","I15577","3,230.96","R&M - Departmental planned (external)","130207411","21/03/2018","Maintenance Programme","Centralised R&M","R2001"
"Wolverhampton City Council","http://opendatacommunities.org/id/metropolitan-district-council/wolverhampton","705542","Midwest Electrical Services Limited","I15477","23.38","R&M - Departmental planned (external)","130206677","14/03/2018","Maintenance Programme","Centralised R&M","R2001"
"Wolverhampton City Council","http://opendatacommunities.org/id/metropolitan-district-council/wolverhampton","705542","Midwest Electrical Services Limited","I15474","239.44","R&M - Departmental planned (external)","130206674","14/03/2018","Maintenance Programme","Centralised R&M","R2001"
"Wolverhampton City Council","http://opendatacommunities.org/id/metropolitan-district-council/wolverhampton","705542","Midwest Electrical Services Limited","I15480","127.63","R&M - Departmental planned (external)","130206680","14/03/2018","Maintenance Programme","Centralised R&M","R2001"
"Wolverhampton City Council","http://opendatacommunities.org/id/metropolitan-district-council/wolverhampton","705542","Midwest Electrical Services Limited","I15466","37.41","R&M - Departmental planned (external)","130206666","14/03/2018","Facilities Management","Caretakers Community Centre","R2001"
"Wolverhampton City Council","http://opendatacommunities.org/id/metropolitan-district-council/wolverhampton","705542","Midwest Electrical Services Limited","I15476","182.28","R&M - Departmental planned (external)","130206676","14/03/2018","Markets","Wednesfield Street Market","R2001"
"Wolverhampton City Council","http://opendatacommunities.org/id/metropolitan-district-council/wolverhampton","705542","Midwest Electrical Services Limited","I15483","110.16","R&M - Departmental planned (external)","130207097","16/03/2018","Maintenance Programme","Centralised R&M","R2001"
"Wolverhampton City Council","http://opendatacommunities.org/id/metropolitan-district-council/wolverhampton","705542","Midwest Electrical Services Limited","I15419","316.79","R&M - Departmental planned (external)","130206181","14/03/2018","Facilities Management","Parkfields Office Accomodation","R2001"
"Wolverhampton City Council","http://opendatacommunities.org/id/metropolitan-district-council/wolverhampton","705542","Midwest Electrical Services Limited","I15484","217.56","R&M - Departmental planned (external)","130206801","16/03/2018","Maintenance Programme","Centralised R&M","R2001"
"Wolverhampton City Council","http://opendatacommunities.org/id/metropolitan-district-council/wolverhampton","705543","Arnold Clark Auto Ltd t/a M M Factors","489197-BI","14.37","Equipment - Purchase","190437008","21/03/2018","Fleet Services","Fleet Management","R4000"
"Wolverhampton City Council","http://opendatacommunities.org/id/metropolitan-district-council/wolverhampton","705548","Mike Tivey","SFH8/02/18","460.00","Services - Supplies and Services to service users","130209748","26/03/2018","Early Intervention","EIP Locality 8 � Children�s Village","R4408"
"Wolverhampton City Council","http://opendatacommunities.org/id/metropolitan-district-council/wolverhampton","705548","Mike Tivey","SFH8/01/18","590.00","Services - Supplies and Services to service users","130207675","07/03/2018","Early Intervention","EIP Locality 8 � Children�s Village","R4408"
"Wolverhampton City Council","http://opendatacommunities.org/id/metropolitan-district-council/wolverhampton","705548","Mike Tivey","SFH7/02/18","120.00","Services - Professional Fees","130209747","26/03/2018","Early Intervention","EIP Locality 7 � Low Hill","R4400"
"Wolverhampton City Council","http://opendatacommunities.org/id/metropolitan-district-council/wolverhampton","705609","Mobile Mini UK Limited","7000749078","50.00","Hire of Plant","130207676","23/03/2018","Environmental Maintenance","Ground Maintenance West","R3201"
"Wolverhampton City Council","http://opendatacommunities.org/id/metropolitan-district-council/wolverhampton","705634","Morelock Signs Limited","0000205146","643.80","Materials","130207099","14/03/2018","Street Lighting","Signs Illuminated","R4007"
"Wolverhampton City Council","http://opendatacommunities.org/id/metropolitan-district-council/wolverhampton","705634","Morelock Signs Limited","0000205146","25.00","Materials","130207099","14/03/2018","Street Lighting","Signs Illuminated","R4007"
"Wolverhampton City Council","http://opendatacommunities.org/id/metropolitan-district-council/wolverhampton","705634","Morelock Signs Limited","0000205147","2,205.00","TPP - Maintenance Contractor - General","130206945","14/03/2018","Operation & Maintenance of Existing Network","Traffic Signals","R5720"
"Wolverhampton City Council","http://opendatacommunities.org/id/metropolitan-district-council/wolverhampton","705634","Morelock Signs Limited","0000205538","240.00","Materials","130207822","26/03/2018","Street Lighting","Signs Illuminated","R4007"
"Wolverhampton City Council","http://opendatacommunities.org/id/metropolitan-district-council/wolverhampton","705634","Morelock Signs Limited","0000204856","9.56","Signage and Labels","130205848","07/03/2018","Older People Provider Services","Bradley Lodge Resource Centre","R4009"
"Wolverhampton City Council","http://opendatacommunities.org/id/metropolitan-district-council/wolverhampton","705634","Morelock Signs Limited","0000204856","8.00","Comms - Postage","130205848","07/03/2018","Older People Provider Services","Bradley Lodge Resource Centre","R4503"
"Wolverhampton City Council","http://opendatacommunities.org/id/metropolitan-district-council/wolverhampton","705644","Moseley Park School","P16808120180313","650.00","Grant Payments to Individuals","190435204","14/03/2018","Looked After Children","LAC Education Team (LACE)","R6402"
"Wolverhampton City Council","http://opendatacommunities.org/id/metropolitan-district-council/wolverhampton","705644","Moseley Park School","P16808120180313","650.00","Grant Payments to Individuals","190435204","14/03/2018","Looked After Children","LAC Education Team (LACE)","R6402"
"Wolverhampton City Council","http://opendatacommunities.org/id/metropolitan-district-council/wolverhampton","705644","Moseley Park School","P16808120180313","650.00","Grant Payments to Individuals","190435204","14/03/2018","Looked After Children","LAC Education Team (LACE)","R6402"
"Wolverhampton City Council","http://opendatacommunities.org/id/metropolitan-district-council/wolverhampton","705644","Moseley Park School","P16808120180313","650.00","Grant Payments to Individuals","190435204","14/03/2018","Looked After Children","LAC Education Team (LACE)","R6402"
"Wolverhampton City Council","http://opendatacommunities.org/id/metropolitan-district-council/wolverhampton","705644","Moseley Park School","P16723920180305","600.00","Grant Payments to Individuals","190431938","07/03/2018","Looked After Children","LAC Education Team (LACE)","R6402"
"Wolverhampton City Council","http://opendatacommunities.org/id/metropolitan-district-council/wolverhampton","705644","Moseley Park School","P16723920180305","650.00","Grant Payments to Individuals","190431938","07/03/2018","Looked After Children","LAC Education Team (LACE)","R6402"
"Wolverhampton City Council","http://opendatacommunities.org/id/metropolitan-district-council/wolverhampton","705646","Mossvale Maint & Sealing Servs Limited","58204","200.00","TPP - Street Cleansing","130207677","21/03/2018","Highways Maintenance","Brook course, Culvert & Subway Maintenance","R5026"
"Wolverhampton City Council","http://opendatacommunities.org/id/metropolitan-district-council/wolverhampton","705646","Mossvale Maint & Sealing Servs Limited","58197","375.00","TPP - Street Cleansing","130207413","16/03/2018","Highways Maintenance","Brook course, Culvert & Subway Maintenance","R5026"
"Wolverhampton City Council","http://opendatacommunities.org/id/metropolitan-district-council/wolverhampton","705680","M-R-S Communications Limited","1176265","195.00","Equipment - Hire","130209405","16/03/2018","Markets","Wolverhampton Indoor and Open Market","R4001"
"Wolverhampton City Council","http://opendatacommunities.org/id/metropolitan-district-council/wolverhampton","705680","M-R-S Communications Limited","1176260","130.00","Comms - Radios","130209749","21/03/2018","Parking Services","Shopmobility","R4508"
"Wolverhampton City Council","http://opendatacommunities.org/id/metropolitan-district-council/wolverhampton","705680","M-R-S Communications Limited","1176510","130.00","Services - Security","130209201","14/03/2018","Strategic Organisation Development","Global Budgets","R4405"
